Body,Body Name,Date,Transaction Number,Invoice Number,Amount,Supplier Name,Supplier ID ,VAT Registration Number ,Expense Area,Expense Type,Expense Code,Purchase Order
http://statistics.data.gov.uk/id/local-authority/29UP,Tonbridge & Malling Borough Council,10/2/2023,0041035937/1,41035937, 15.00,BNP Paribas,01360500,,Bank Charges,Banking Arrangements,D43QK000044222,
http://statistics.data.gov.uk/id/local-authority/29UP,Tonbridge & Malling Borough Council,10/2/2023,0041035939/1,41035939, 50.00,National Westminster Bank Plc,00069400,,Bank Charges,Banking Arrangements,D43QK000044222,
http://statistics.data.gov.uk/id/local-authority/29UP,Tonbridge & Malling Borough Council,10/3/2023,0041035942/1,41035942, 15.00,BNP Paribas,01360500,,Bank Charges,Banking Arrangements,D43QK000044222,
http://statistics.data.gov.uk/id/local-authority/29UP,Tonbridge & Malling Borough Council,10/3/2023,0041035944/1,41035944, 3661.60,National Westminster Bank Plc,00069400,,Bank Charges,Banking Arrangements,D43QK000044222,
http://statistics.data.gov.uk/id/local-authority/29UP,Tonbridge & Malling Borough Council,10/4/2023,0011046990/1,11046990, 589.41,KH Recruitment Ltd,01738900,,Temporary Staff,Personnel Sals&Overheads,D01ABDB0311300,
http://statistics.data.gov.uk/id/local-authority/29UP,Tonbridge & Malling Borough Council,10/4/2023,0011046991/1,11046991, 572.00,Thomson Snell & Passmore,00101700,,Legal Fees,Legal Sals&Overheads,D01ARDR0044002,
http://statistics.data.gov.uk/id/local-authority/29UP,Tonbridge & Malling Borough Council,10/4/2023,0011046992/1,11046992, 1290.36,VIPSystem Ltd,01422600,,Purchases,Licences - Fee Paying,H27SH000040101,110070487
http://statistics.data.gov.uk/id/local-authority/29UP,Tonbridge & Malling Borough Council,10/4/2023,0011046992/2,11046992, 1784.64,VIPSystem Ltd,01422600,,Purchases,Licences - Fee Paying,H27SH000040101,110070487
http://statistics.data.gov.uk/id/local-authority/29UP,Tonbridge & Malling Borough Council,10/4/2023,0011046992/3,11046992, 314.28,VIPSystem Ltd,01422600,,Purchases,Licences - Fee Paying,H27SH000040101,110070487
http://statistics.data.gov.uk/id/local-authority/29UP,Tonbridge & Malling Borough Council,10/4/2023,0011046992/4,11046992, 314.28,VIPSystem Ltd,01422600,,Purchases,Licences - Fee Paying,H27SH000040101,110070487
http://statistics.data.gov.uk/id/local-authority/29UP,Tonbridge & Malling Borough Council,10/4/2023,0011046992/5,11046992, 157.14,VIPSystem Ltd,01422600,,Purchases,Licences - Fee Paying,H27SH000040101,110070487
http://statistics.data.gov.uk/id/local-authority/29UP,Tonbridge & Malling Borough Council,10/4/2023,0011046992/6,11046992, 256.66,VIPSystem Ltd,01422600,,Purchases,Licences - Fee Paying,H27SH000040101,110070487
http://statistics.data.gov.uk/id/local-authority/29UP,Tonbridge & Malling Borough Council,10/4/2023,0011046992/7,11046992, 127.12,VIPSystem Ltd,01422600,,Purchases,Licences - Fee Paying,H27SH000040101,110070487
http://statistics.data.gov.uk/id/local-authority/29UP,Tonbridge & Malling Borough Council,10/4/2023,0011046992/8,11046992, 105.26,VIPSystem Ltd,01422600,,Purchases,Licences - Fee Paying,H27SH000040101,110070487
http://statistics.data.gov.uk/id/local-authority/29UP,Tonbridge & Malling Borough Council,10/4/2023,0011046992/9,11046992, 315.78,VIPSystem Ltd,01422600,,Purchases,Licences - Fee Paying,H27SH000040101,110070487
http://statistics.data.gov.uk/id/local-authority/29UP,Tonbridge & Malling Borough Council,10/4/2023,0011046993/1,11046993, 216.50,Thomson Snell & Passmore,00101700,,Legal Fees,Legal Sals&Overheads,D01ARDR0044002,
http://statistics.data.gov.uk/id/local-authority/29UP,Tonbridge & Malling Borough Council,10/4/2023,0011046994/1,11046994, 11575.00,Cornerstones Barristers,01359100,,Other Planning Enq - Legal Cos,Legal Sals&Overheads,D01ARDR0044146,
http://statistics.data.gov.uk/id/local-authority/29UP,Tonbridge & Malling Borough Council,10/4/2023,0012008850/1,12008850, 3187.32,Cisilion Ltd,00708800,,Maintenance - Ancillary Equip,Information Technology,D27KD000040137,410032479
http://statistics.data.gov.uk/id/local-authority/29UP,Tonbridge & Malling Borough Council,10/4/2023,0012008852/1,12008852, 3.00,O2 UK Ltd,01268000,,Telephones - General,Open Spaces & Amenity Areas,B22LE000045010,
http://statistics.data.gov.uk/id/local-authority/29UP,Tonbridge & Malling Borough Council,10/4/2023,0012008852/10,12008852, 9.20,O2 UK Ltd,01268000,,Mobile Telephones,Technical Sals&Overheads,D01AEDE0245013,
http://statistics.data.gov.uk/id/local-authority/29UP,Tonbridge & Malling Borough Council,10/4/2023,0012008852/11,12008852, 42.00,O2 UK Ltd,01268000,,Mobile Telephones,Technical Sals&Overheads,D01AEDE0445013,
http://statistics.data.gov.uk/id/local-authority/29UP,Tonbridge & Malling Borough Council,10/4/2023,0012008852/12,12008852, 3.00,O2 UK Ltd,01268000,,Mobile Telephones,Technical Sals&Overheads,D01AEDE0545013,
http://statistics.data.gov.uk/id/local-authority/29UP,Tonbridge & Malling Borough Council,10/4/2023,0012008852/13,12008852, 12.00,O2 UK Ltd,01268000,,Mobile Telephones,Finance Sals&Overheads,D01AFDF0045013,
http://statistics.data.gov.uk/id/local-authority/29UP,Tonbridge & Malling Borough Council,10/4/2023,0012008852/14,12008852, 6.00,O2 UK Ltd,01268000,,Mobile Telephones,Finance Sals&Overheads,D01AFDF0945013,
http://statistics.data.gov.uk/id/local-authority/29UP,Tonbridge & Malling Borough Council,10/4/2023,0012008852/15,12008852, 12.00,O2 UK Ltd,01268000,,Mobile Telephones,St Scene & Leis Sals&Overheads,D01AGDG0045013,
http://statistics.data.gov.uk/id/local-authority/29UP,Tonbridge & Malling Borough Council,10/4/2023,0012008852/16,12008852, 12.00,O2 UK Ltd,01268000,,Mobile Telephones,St Scene & Leis Sals&Overheads,D01AGDG0145013,
http://statistics.data.gov.uk/id/local-authority/29UP,Tonbridge & Malling Borough Council,10/4/2023,0012008852/17,12008852, 9.10,O2 UK Ltd,01268000,,Mobile Telephones,St Scene & Leis Sals&Overheads,D01AGDG0445013,
http://statistics.data.gov.uk/id/local-authority/29UP,Tonbridge & Malling Borough Council,10/4/2023,0012008852/18,12008852, 36.61,O2 UK Ltd,01268000,,Mobile Telephones,St Scene & Leis Sals&Overheads,D01AGDG2045013,
http://statistics.data.gov.uk/id/local-authority/29UP,Tonbridge & Malling Borough Council,10/4/2023,0012008852/19,12008852, 9.00,O2 UK Ltd,01268000,,Mobile Telephones,Planning Sals&Overheads,D01AJDJ0045013,
http://statistics.data.gov.uk/id/local-authority/29UP,Tonbridge & Malling Borough Council,10/4/2023,0012008852/2,12008852, 3.00,O2 UK Ltd,01268000,,Mobile Telephones,Admin & Prop Sals&Overheads,D01AADA0045013,
http://statistics.data.gov.uk/id/local-authority/29UP,Tonbridge & Malling Borough Council,10/4/2023,0012008852/20,12008852, 12.40,O2 UK Ltd,01268000,,Mobile Telephones,Planning Sals&Overheads,D01AJDJ0245013,
http://statistics.data.gov.uk/id/local-authority/29UP,Tonbridge & Malling Borough Council,10/4/2023,0012008852/21,12008852, 6.00,O2 UK Ltd,01268000,,Mobile Telephones,Legal Sals&Overheads,D01ARDR0045013,
http://statistics.data.gov.uk/id/local-authority/29UP,Tonbridge & Malling Borough Council,10/4/2023,0012008852/22,12008852, 12.00,O2 UK Ltd,01268000,,Mobile Telephones,Legal Sals&Overheads,D01ARDR0445013,
http://statistics.data.gov.uk/id/local-authority/29UP,Tonbridge & Malling Borough Council,10/4/2023,0012008852/23,12008852, 3.00,O2 UK Ltd,01268000,,Mobile Telephones,Legal Sals&Overheads,D01ARDR0745013,
http://statistics.data.gov.uk/id/local-authority/29UP,Tonbridge & Malling Borough Council,10/4/2023,0012008852/24,12008852, 3.00,O2 UK Ltd,01268000,,Mobile Telephones,Env Hlth & Hsg Sals&Overheads,D01AVDV0045013,
http://statistics.data.gov.uk/id/local-authority/29UP,Tonbridge & Malling Borough Council,10/4/2023,0012008852/25,12008852, 9.00,O2 UK Ltd,01268000,,Mobile Telephones,Env Hlth & Hsg Sals&Overheads,D01AVDV0145013,
http://statistics.data.gov.uk/id/local-authority/29UP,Tonbridge & Malling Borough Council,10/4/2023,0012008852/26,12008852, 6.00,O2 UK Ltd,01268000,,Mobile Telephones,Env Hlth & Hsg Sals&Overheads,D01AVDV0345013,
http://statistics.data.gov.uk/id/local-authority/29UP,Tonbridge & Malling Borough Council,10/4/2023,0012008852/27,12008852, 3.00,O2 UK Ltd,01268000,,Mobile Telephones,Env Hlth & Hsg Sals&Overheads,D01AVDV0745013,
http://statistics.data.gov.uk/id/local-authority/29UP,Tonbridge & Malling Borough Council,10/4/2023,0012008852/28,12008852, 6.00,O2 UK Ltd,01268000,,Mobile Telephones,Env Hlth & Hsg Sals&Overheads,D01AVDV0945013,
http://statistics.data.gov.uk/id/local-authority/29UP,Tonbridge & Malling Borough Council,10/4/2023,0012008852/29,12008852, 9.30,O2 UK Ltd,01268000,,Mobile Telephones,Customer Services,D23CS000045013,
http://statistics.data.gov.uk/id/local-authority/29UP,Tonbridge & Malling Borough Council,10/4/2023,0012008852/3,12008852, 3.00,O2 UK Ltd,01268000,,Mobile Telephones,Admin & Prop Sals&Overheads,D01AADA1045013,
http://statistics.data.gov.uk/id/local-authority/29UP,Tonbridge & Malling Borough Council,10/4/2023,0012008852/30,12008852, 3.00,O2 UK Ltd,01268000,,Mobile Telephones,Tonbridge Gateway,D23TG000045013,
http://statistics.data.gov.uk/id/local-authority/29UP,Tonbridge & Malling Borough Council,10/4/2023,0012008852/31,12008852, 627.00,O2 UK Ltd,01268000,,Leased Lines & Modems,Information Technology,D27KD000045011,
http://statistics.data.gov.uk/id/local-authority/29UP,Tonbridge & Malling Borough Council,10/4/2023,0012008852/32,12008852, 3.00,O2 UK Ltd,01268000,,Mobile Telephones,Mayoral & Other Member Support,D29LX000045013,
http://statistics.data.gov.uk/id/local-authority/29UP,Tonbridge & Malling Borough Council,10/4/2023,0012008852/33,12008852, 3.00,O2 UK Ltd,01268000,,Emergency Out of Hours Recharg,Refuse Collection,H20SA000045030,
http://statistics.data.gov.uk/id/local-authority/29UP,Tonbridge & Malling Borough Council,10/4/2023,0012008852/34,12008852, 3.00,O2 UK Ltd,01268000,,Emergency Out of Hours Recharg,Street Scene,H23SD000045030,
http://statistics.data.gov.uk/id/local-authority/29UP,Tonbridge & Malling Borough Council,10/4/2023,0012008852/4,12008852, 9.00,O2 UK Ltd,01268000,,Mobile Telephones,Admin & Prop Sals&Overheads,D01AADA1245013,
http://statistics.data.gov.uk/id/local-authority/29UP,Tonbridge & Malling Borough Council,10/4/2023,0012008852/5,12008852, 3.00,O2 UK Ltd,01268000,,Mobile Telephones,Chief Exec Sals&Overheads,D01ACDC0045013,
http://statistics.data.gov.uk/id/local-authority/29UP,Tonbridge & Malling Borough Council,10/4/2023,0012008852/6,12008852, 3.00,O2 UK Ltd,01268000,,Mobile Telephones,Chief Exec Sals&Overheads,D01ACDC0145013,
http://statistics.data.gov.uk/id/local-authority/29UP,Tonbridge & Malling Borough Council,10/4/2023,0012008852/7,12008852, 3.00,O2 UK Ltd,01268000,,Mobile Telephones,Chief Exec Sals&Overheads,D01ACDC0245013,
http://statistics.data.gov.uk/id/local-authority/29UP,Tonbridge & Malling Borough Council,10/4/2023,0012008852/8,12008852, 3.00,O2 UK Ltd,01268000,,Mobile Telephones,Technical Sals&Overheads,D01AEDE0045013,
http://statistics.data.gov.uk/id/local-authority/29UP,Tonbridge & Malling Borough Council,10/4/2023,0012008852/9,12008852, 6.00,O2 UK Ltd,01268000,,Mobile Telephones,Technical Sals&Overheads,D01AEDE0145013,
http://statistics.data.gov.uk/id/local-authority/29UP,Tonbridge & Malling Borough Council,10/4/2023,0012008853/1,12008853, 18.64,Esendex Limited,01008900,,Leased Lines & Modems,Information Technology,D27KD000045011,
http://statistics.data.gov.uk/id/local-authority/29UP,Tonbridge & Malling Borough Council,10/4/2023,0012008854/1,12008854, 9.69,Daisy Communications,01068100,,Telephones - Rentals,General Admin Telephones,D24GT000045005,
http://statistics.data.gov.uk/id/local-authority/29UP,Tonbridge & Malling Borough Council,10/4/2023,0012008854/2,12008854, 285.76,Daisy Communications,01068100,,Telephones - Call Costs,General Admin Telephones,D24GT000045006,
http://statistics.data.gov.uk/id/local-authority/29UP,Tonbridge & Malling Borough Council,10/4/2023,0012008854/3,12008854, 95.92,Daisy Communications,01068100,,Leased Lines & Modems,Information Technology,D27KD000045011,
http://statistics.data.gov.uk/id/local-authority/29UP,Tonbridge & Malling Borough Council,10/4/2023,0012008854/4,12008854, 74.46,Daisy Communications,01068100,,Maintenance - General,Security Services Management,E09GA000040135,
http://statistics.data.gov.uk/id/local-authority/29UP,Tonbridge & Malling Borough Council,10/4/2023,0012008855/1,12008855, 785.94,CCS Media Ltd,00018000,,Purchases,Information Technology,D27KD000040101,410032484
http://statistics.data.gov.uk/id/local-authority/29UP,Tonbridge & Malling Borough Council,10/4/2023,0012008855/2,12008855, 6.00,CCS Media Ltd,00018000,,Delivery Expenses,Information Technology,D27KD000044069,410032484
http://statistics.data.gov.uk/id/local-authority/29UP,Tonbridge & Malling Borough Council,10/4/2023,0021038865/1,21038865, 1885.00,The Original Tree Surgeons Limited,01906200,219421521,Health & Safety - Trees,Countryside/Woodland Mgt,B22LG000044045,210057400
http://statistics.data.gov.uk/id/local-authority/29UP,Tonbridge & Malling Borough Council,10/4/2023,0021038866/3,21038866, 8.75,B&Q/Screwfix Direct(TradeUKAccount),00141300,,Maintenance of Grounds,Haysden Country Park,B22LC000020402,
http://statistics.data.gov.uk/id/local-authority/29UP,Tonbridge & Malling Borough Council,10/4/2023,0021038867/1,21038867, 80.00,Mr Mark Williams,01184500,,Marketing,Events Development,B41TJZ99944215,210057386
http://statistics.data.gov.uk/id/local-authority/29UP,Tonbridge & Malling Borough Council,10/4/2023,0021038868/1,21038868, 493.75,Rock UK,01212500,,Partnership Fees,Leisure Planning & Policy,B37SD000044048,
http://statistics.data.gov.uk/id/local-authority/29UP,Tonbridge & Malling Borough Council,10/4/2023,0021038869/1,21038869, 30.00,Weddle and Co,00714900,,Maintenance of Grounds,Open Spaces & Amenity Areas,B22LE000020402,210057420
http://statistics.data.gov.uk/id/local-authority/29UP,Tonbridge & Malling Borough Council,10/4/2023,0021038870/1,21038870, 15.00,Weddle and Co,00714900,,Maintenance of Grounds,Open Spaces & Amenity Areas,B22LE000020402,210057419
http://statistics.data.gov.uk/id/local-authority/29UP,Tonbridge & Malling Borough Council,10/4/2023,0022028133/3,22028133, 82.00,FirstAid4Less,01509300,,Health General,Food & Safety - General,H35SW000044049,
http://statistics.data.gov.uk/id/local-authority/29UP,Tonbridge & Malling Borough Council,10/4/2023,0022028134/3,22028134, 45.72,EDF Energy Customers plc,01035000,,Electricity,Homelessness,C01AATNHS21002,
http://statistics.data.gov.uk/id/local-authority/29UP,Tonbridge & Malling Borough Council,10/4/2023,0022028135/3,22028135, 980.00,Countrystyle Group,00835900,781981681,Collection of Card,Dry Recycling,H34SR000054008,
http://statistics.data.gov.uk/id/local-authority/29UP,Tonbridge & Malling Borough Council,10/4/2023,0022028136/3,22028136, 4801.69,Ward Security LTD,01490000,,Dog Warden,Street Scene,H23SD000044100,
http://statistics.data.gov.uk/id/local-authority/29UP,Tonbridge & Malling Borough Council,10/4/2023,0022028137/3,22028137, 1397.00,Specialist Hygiene Services,01466100,,Cleaning & Domestic Supplies,Haysden Country Park,B22LC000026001,
http://statistics.data.gov.uk/id/local-authority/29UP,Tonbridge & Malling Borough Council,10/4/2023,0022028137/4,22028137, 4192.55,Specialist Hygiene Services,01466100,,Contract Payments,Public Conveniences,H22SC000054001,
http://statistics.data.gov.uk/id/local-authority/29UP,Tonbridge & Malling Borough Council,10/4/2023,0022028138/3,22028138, 490.00,Countrystyle Group,00835900,781981681,Collection of Card,Dry Recycling,H34SR000054008,
http://statistics.data.gov.uk/id/local-authority/29UP,Tonbridge & Malling Borough Council,10/4/2023,0022028139/1,22028139, 4645.60,Countrystyle Group,00835900,781981681,Plastic Recycling,Dry Recycling,H34SR000054019,
http://statistics.data.gov.uk/id/local-authority/29UP,Tonbridge & Malling Borough Council,10/4/2023,0031019736/1,31019736, 500.00,Traffic Enforcement Centre,00604200,,Adjudication & Enforcement Ser,Parking Off-Street,E10HA000044230,
http://statistics.data.gov.uk/id/local-authority/29UP,Tonbridge & Malling Borough Council,10/4/2023,0031019736/2,31019736, 500.00,Traffic Enforcement Centre,00604200,,Adjudication & Enforcement Ser,Parking On-Street,E10HD000044230,
http://statistics.data.gov.uk/id/local-authority/29UP,Tonbridge & Malling Borough Council,10/4/2023,0031019739/1,31019739, 1625.00,Marston,01485000,,Adjudication & Enforcement Ser,Parking Off-Street,E10HA000044230,
http://statistics.data.gov.uk/id/local-authority/29UP,Tonbridge & Malling Borough Council,10/4/2023,0031019740/1,31019740, 496.00,Arnold & Court Ltd,01411300,,Contract Payments,Boro Drainage & Land Drainage,E20MA000054001,310043120
http://statistics.data.gov.uk/id/local-authority/29UP,Tonbridge & Malling Borough Council,10/4/2023,0031019741/1,31019741, 200.00,Arnold & Court Ltd,01411300,,Maintenance of Grounds,Open Spaces & Amenity Areas,B22LE000020402,210057296
http://statistics.data.gov.uk/id/local-authority/29UP,Tonbridge & Malling Borough Council,10/4/2023,0031019742/1,31019742, 195.48,British Telecommunications Plc,00012800,,Maintenance - General,Security Services Management,E09GA000040135,
http://statistics.data.gov.uk/id/local-authority/29UP,Tonbridge & Malling Borough Council,10/4/2023,0031019743/1,31019743, 195.48,British Telecommunications Plc,00012800,,Maintenance - General,Security Services Management,E09GA000040135,
http://statistics.data.gov.uk/id/local-authority/29UP,Tonbridge & Malling Borough Council,10/4/2023,0031019744/1,31019744, 19.17,KelticLimited,01000400,,Uniforms,Parking Off-Street,E10HA000042002,310043109
http://statistics.data.gov.uk/id/local-authority/29UP,Tonbridge & Malling Borough Council,10/4/2023,0031019744/2,31019744, 5.97,KelticLimited,01000400,,Uniforms,Parking Off-Street,E10HA000042002,310043109
http://statistics.data.gov.uk/id/local-authority/29UP,Tonbridge & Malling Borough Council,10/4/2023,0031019744/3,31019744, 39.57,KelticLimited,01000400,,Uniforms,Parking Off-Street,E10HA000042002,310043109
http://statistics.data.gov.uk/id/local-authority/29UP,Tonbridge & Malling Borough Council,10/4/2023,0031019744/4,31019744, 8.34,KelticLimited,01000400,,Uniforms,Parking Off-Street,E10HA000042002,310043109
http://statistics.data.gov.uk/id/local-authority/29UP,Tonbridge & Malling Borough Council,10/4/2023,0031019744/5,31019744, 3.98,KelticLimited,01000400,,Uniforms,Parking On-Street,E10HD000042002,310043109
http://statistics.data.gov.uk/id/local-authority/29UP,Tonbridge & Malling Borough Council,10/4/2023,0031019744/6,31019744, 26.38,KelticLimited,01000400,,Uniforms,Parking On-Street,E10HD000042002,310043109
http://statistics.data.gov.uk/id/local-authority/29UP,Tonbridge & Malling Borough Council,10/4/2023,0031019744/7,31019744, 12.78,KelticLimited,01000400,,Uniforms,Parking On-Street,E10HD000042002,310043109
http://statistics.data.gov.uk/id/local-authority/29UP,Tonbridge & Malling Borough Council,10/4/2023,0031019744/8,31019744, 5.56,KelticLimited,01000400,,Uniforms,Parking On-Street,E10HD000042002,310043109
http://statistics.data.gov.uk/id/local-authority/29UP,Tonbridge & Malling Borough Council,10/4/2023,0032010479/3,32010479, 2066.25,Vivid Resourcing,01773700,,Temporary Staff,Planning Sals&Overheads,D01AJDJ0111300,
http://statistics.data.gov.uk/id/local-authority/29UP,Tonbridge & Malling Borough Council,10/4/2023,0032010480/3,32010480, 1749.20,The Oyster Partnership,01196400,,Temporary Staff,Planning Sals&Overheads,D01AJDJ0111300,
http://statistics.data.gov.uk/id/local-authority/29UP,Tonbridge & Malling Borough Council,10/4/2023,0032010481/3,32010481, 1239.00,The Oyster Partnership,01196400,,Temporary Staff,Planning Sals&Overheads,D01AJDJ0111300,
http://statistics.data.gov.uk/id/local-authority/29UP,Tonbridge & Malling Borough Council,10/4/2023,0032010482/1,32010482, 24000.00,Mereworth Parish Council,00064700,,Payments,S106 - Commuted Sums,M04AD000001001,
http://statistics.data.gov.uk/id/local-authority/29UP,Tonbridge & Malling Borough Council,10/4/2023,0032010483/3,32010483, 2227.75,Hays Specialist Recruitment Limited,01879200,773695871,Temporary Staff,Planning Sals&Overheads,D01AJDJ0111300,
http://statistics.data.gov.uk/id/local-authority/29UP,Tonbridge & Malling Borough Council,10/4/2023,0032010484/3,32010484, 1350.00,G2 Recruitment Solutions,01786000,,Temporary Staff,Planning Sals&Overheads,D01AJDJ0011300,
http://statistics.data.gov.uk/id/local-authority/29UP,Tonbridge & Malling Borough Council,10/4/2023,0032010485/1,32010485, 2300.00,Enplan,01244500,,Development of Local Plan,Development of Local Plan,A01AE000044023,320003467
http://statistics.data.gov.uk/id/local-authority/29UP,Tonbridge & Malling Borough Council,10/4/2023,0032010487/1,32010487, 200.00,P K Saunders Electrical Ltd,01900800,,Competent Persons Schemes,Building Control,A01AD000048116,
http://statistics.data.gov.uk/id/local-authority/29UP,Tonbridge & Malling Borough Council,10/4/2023,0032010488/3,32010488, 1034.00,Carrington West Limited,01844500,,Temporary Staff,Planning Sals&Overheads,D01AJDJ0111300,
http://statistics.data.gov.uk/id/local-authority/29UP,Tonbridge & Malling Borough Council,10/4/2023,0032010489/1,32010489, 2015.00,DHA Planning Ltd,01553900,,Professional Fees,Planning Policy,A01AF000044001,220003386
http://statistics.data.gov.uk/id/local-authority/29UP,Tonbridge & Malling Borough Council,10/4/2023,0032010490/1,32010490, 780.00,Quality Bailiffs,01835600,,Professional Fees,Development Management,A01ABENFO44001,
http://statistics.data.gov.uk/id/local-authority/29UP,Tonbridge & Malling Borough Council,10/4/2023,0032010491/1,32010491, 6604.00,Quality Bailiffs,01835600,,Professional Fees,Development Management,A01ABENFO44001,
http://statistics.data.gov.uk/id/local-authority/29UP,Tonbridge & Malling Borough Council,10/4/2023,0041035932/1,41035932, 1147.69,Morgan Hunt UK Ltd,01086900,,Temporary Staff,Finance Sals&Overheads,D01AFDF1111300,
http://statistics.data.gov.uk/id/local-authority/29UP,Tonbridge & Malling Borough Council,10/4/2023,0041035933/1,41035933, 1244.28,Rundle & Co Ltd,00087200,,Bailiffs Commission,Local Revenue & NNDR Collect,D41QA000044075,
http://statistics.data.gov.uk/id/local-authority/29UP,Tonbridge & Malling Borough Council,10/4/2023,0041035934/2,41035934, 2503.79,Maidstone Borough Council,01173700,,Bailiffs Commission,Local Revenue & NNDR Collect,D41QA000044075,
http://statistics.data.gov.uk/id/local-authority/29UP,Tonbridge & Malling Borough Council,10/4/2023,0041035935/1,41035935, 1306.18,Maidstone Borough Council,01173700,,Bailiffs Commission,Local Revenue & NNDR Collect,D41QA000044075,
http://statistics.data.gov.uk/id/local-authority/29UP,Tonbridge & Malling Borough Council,10/4/2023,0041035936/1,41035936, 75.00,Maidstone Borough Council,01173700,,Bailiffs Commission,Local Revenue & NNDR Collect,D41QA000044075,
http://statistics.data.gov.uk/id/local-authority/29UP,Tonbridge & Malling Borough Council,10/4/2023,0041035940/1,41035940, 1398.51,Rundle & Co Ltd,00087200,,Bailiffs Commission,Local Revenue & NNDR Collect,D41QA000044075,
http://statistics.data.gov.uk/id/local-authority/29UP,Tonbridge & Malling Borough Council,10/4/2023,0041035941/1,41035941, 150.00,Rundle & Co Ltd,00087200,,Bailiffs Commission,Local Revenue & NNDR Collect,D41QA000044075,
http://statistics.data.gov.uk/id/local-authority/29UP,Tonbridge & Malling Borough Council,10/5/2023,0041035950/1,41035950, 1138.00,Adminware Software Private Limited,01859800,,Software Hire & Support,Information Technology,D27KD000044059,
http://statistics.data.gov.uk/id/local-authority/29UP,Tonbridge & Malling Borough Council,10/5/2023,0041035951/1,41035951, 15.00,National Westminster Bank Plc,00069400,,Bank Charges,Banking Arrangements,D43QK000044222,
http://statistics.data.gov.uk/id/local-authority/29UP,Tonbridge & Malling Borough Council,10/6/2023,0041035953/1,41035953, 1130.74,King & Shaxson Investments,01411100,,Professional Fees,Treasury Management,D43QT000044001,
http://statistics.data.gov.uk/id/local-authority/29UP,Tonbridge & Malling Borough Council,10/6/2023,0041035954/1,41035954, 397.10,King & Shaxson Investments,01411100,,Professional Fees,Treasury Management,D43QT000044001,
http://statistics.data.gov.uk/id/local-authority/29UP,Tonbridge & Malling Borough Council,10/11/2023,0011046995/1,11046995, 4490.50,Idox Software Ltd,00962400,,Electronic Elector Responses,Electoral Registration,D31MF000044102,
http://statistics.data.gov.uk/id/local-authority/29UP,Tonbridge & Malling Borough Council,10/11/2023,0011046996/1,11046996, 1217.80,Sellick Partnership Group Limited,01336800,,Temporary Staff,Legal Sals&Overheads,D01ARDR0011300,
http://statistics.data.gov.uk/id/local-authority/29UP,Tonbridge & Malling Borough Council,10/11/2023,0011046997/1,11046997, 4271.50,Thomson Snell & Passmore,00101700,,Legal Fees,Legal Sals&Overheads,D01ARDR0044002,
http://statistics.data.gov.uk/id/local-authority/29UP,Tonbridge & Malling Borough Council,10/11/2023,0011046998/1,11046998, 24.15,Oasis Group  - Box-It South East,00966800,931579211,Purchases,Electoral Registration,D31MF000040101,
http://statistics.data.gov.uk/id/local-authority/29UP,Tonbridge & Malling Borough Council,10/11/2023,0011046999/1,11046999, 898.66,Canon (UK) Limited,00298700,,Purchases - Paper,Printing,D22GA000040102,
http://statistics.data.gov.uk/id/local-authority/29UP,Tonbridge & Malling Borough Council,10/11/2023,0011047000/1,11047000, 1561.36,The Oyster Partnership,01196400,,Temporary Staff,Admin & Prop Sals&Overheads,D01AADA1111300,
http://statistics.data.gov.uk/id/local-authority/29UP,Tonbridge & Malling Borough Council,10/11/2023,0011047001/1,11047001, 144.76,Royal Mail,00086200,,Postages - Business Reply,Electoral Registration,D31MF000045003,
http://statistics.data.gov.uk/id/local-authority/29UP,Tonbridge & Malling Borough Council,10/11/2023,0011047001/2,11047001, 20.00,Royal Mail,00086200,,Purchases,Business Reply Stock Account,K14AT000001002,
http://statistics.data.gov.uk/id/local-authority/29UP,Tonbridge & Malling Borough Council,10/11/2023,0011047002/1,11047002, 114.39,B&Q/Screwfix Direct(TradeUKAccount),00141300,,Purchases,Cleaning & Security,D21FD000040101,
http://statistics.data.gov.uk/id/local-authority/29UP,Tonbridge & Malling Borough Council,10/11/2023,0011047003/1,11047003, 722.00,Disclosure & Barring Service,00865900,,Professional Fees,Licences - Fee Paying,H27SH000044001,
http://statistics.data.gov.uk/id/local-authority/29UP,Tonbridge & Malling Borough Council,10/11/2023,0011047004/1,11047004, 2.92,KCS Education/CSG Global Education Ltd,01897200,408845925,Purchases,Licences - Fee Paying,H27SH000040101,110070500
http://statistics.data.gov.uk/id/local-authority/29UP,Tonbridge & Malling Borough Council,10/11/2023,0011047004/2,11047004, 7.90,KCS Education/CSG Global Education Ltd,01897200,408845925,Purchases,Licences - Fee Paying,H27SH000040101,110070500
http://statistics.data.gov.uk/id/local-authority/29UP,Tonbridge & Malling Borough Council,10/11/2023,0011047004/3,11047004, 8.98,KCS Education/CSG Global Education Ltd,01897200,408845925,Purchases,Licences - Fee Paying,H27SH000040101,110070500
http://statistics.data.gov.uk/id/local-authority/29UP,Tonbridge & Malling Borough Council,10/11/2023,0011047005/1,11047005, 950.00,GreenFish Consulting part of JCML Consul,01627700,,BRREP General Maintenance,Angel Centre,M15HAP10001900,110070466
http://statistics.data.gov.uk/id/local-authority/29UP,Tonbridge & Malling Borough Council,10/11/2023,0011047006/1,11047006, 691.00,Menzies Distribution Ltd/Take one Media,01914100,,Marketing,Information & Publicity,D32MJ000044215,110070462
http://statistics.data.gov.uk/id/local-authority/29UP,Tonbridge & Malling Borough Council,10/11/2023,0011047007/1,11047007, 340.00,Pillory Barn Design Studios,01898100,619155927,Marketing,Information & Publicity,D32MJ000044215,110070196
http://statistics.data.gov.uk/id/local-authority/29UP,Tonbridge & Malling Borough Council,10/11/2023,0011047008/1,11047008, 788.00,Southern Lightning Engineers Ltd,00094000,,BRREP Servicing-Lightning Prot,Larkfield Leisure Centre,M15HDP20001942,110070420
http://statistics.data.gov.uk/id/local-authority/29UP,Tonbridge & Malling Borough Council,10/11/2023,0011047009/1,11047009, 165.00,Southern Lightning Engineers Ltd,00094000,,BRREP Servicing-Lightning Prot,Tonbridge Castle Gatehouse,M15HKP20001942,110070421
http://statistics.data.gov.uk/id/local-authority/29UP,Tonbridge & Malling Borough Council,10/11/2023,0011047010/1,11047010, 50.00,BML Building Services Ltd,01505000,,BRREP Response - General,Pleasure Grounds & Open Spaces,M15HHP50001997,
http://statistics.data.gov.uk/id/local-authority/29UP,Tonbridge & Malling Borough Council,10/11/2023,0011047011/1,11047011, 180.00,BML Building Services Ltd,01505000,,BRREP Response - General,PC - General,M15JAP50001997,110070481
http://statistics.data.gov.uk/id/local-authority/29UP,Tonbridge & Malling Borough Council,10/11/2023,0011047012/1,11047012, 245.00,Security & Electronic Solutions Ltd,01379500,,BRREP Servicing - CCTV,Leis Man Poult Wood Golf Centr,M15HEP20001952,110070443
http://statistics.data.gov.uk/id/local-authority/29UP,Tonbridge & Malling Borough Council,10/11/2023,0011047013/1,11047013, 456.00,Record UK Ltd,01116900,,BRREP Servicing-entrance doors,Tonbridge Swimming Pool,M15HBP20001927,110069903
http://statistics.data.gov.uk/id/local-authority/29UP,Tonbridge & Malling Borough Council,10/11/2023,0011047014/1,11047014, 2717.00,Record UK Ltd,01116900,,BRREP Servicing-entrance doors,Tonbridge Swimming Pool,M15HBP20001927,110070423
http://statistics.data.gov.uk/id/local-authority/29UP,Tonbridge & Malling Borough Council,10/11/2023,0011047015/1,11047015, 1865.00,Learnd UK,01226700,,BRREP Plant renewals,Tonbridge Swimming Pool,M15HBP20001909,110070368
http://statistics.data.gov.uk/id/local-authority/29UP,Tonbridge & Malling Borough Council,10/11/2023,0011047016/1,11047016, 1089.00,Learnd UK,01226700,,BRREP BMS System Mntce/Upgrade,Larkfield Leisure Centre,M15HDP20001912,110069931
http://statistics.data.gov.uk/id/local-authority/29UP,Tonbridge & Malling Borough Council,10/11/2023,0011047017/1,11047017, 885.00,System Hygienics Ltd,00600300,,BRREP Fire Damper Testing,Larkfield Leisure Centre,M15HDP30001970,110070450
http://statistics.data.gov.uk/id/local-authority/29UP,Tonbridge & Malling Borough Council,10/11/2023,0011047018/1,11047018, 235.00,Lemon Drainage Services LTD,01761600,,BRREP Servicing - Pumping Stn,Pleasure Grounds & Open Spaces,M15HHP20001931,110070246
http://statistics.data.gov.uk/id/local-authority/29UP,Tonbridge & Malling Borough Council,10/11/2023,0011047019/1,11047019, 1506.24,Glaze-Tech Services Ltd,00779500,,BRREP Response - General,Angel Centre,M15HAP50001997,110070425
http://statistics.data.gov.uk/id/local-authority/29UP,Tonbridge & Malling Borough Council,10/11/2023,0011047020/1,11047020, 3050.00,JB Carpentry - J Baker,01878900,,BRREP Window/door repairs,Larkfield Leisure Centre,M15HDP20001919,110070440
http://statistics.data.gov.uk/id/local-authority/29UP,Tonbridge & Malling Borough Council,10/11/2023,0011047021/1,11047021, 170.00,Record UK Ltd,01116900,,BRREP Servicing-entrance doors,Larkfield Leisure Centre,M15HDP20001927,
http://statistics.data.gov.uk/id/local-authority/29UP,Tonbridge & Malling Borough Council,10/11/2023,0011047022/1,11047022, 95.00,Southern Care Maintenance,01282600,,BRREP Servicing - Diasbled Acc,Tonbridge Castle / CAB,M15KFP20001981,110070444
http://statistics.data.gov.uk/id/local-authority/29UP,Tonbridge & Malling Borough Council,10/11/2023,0011047023/1,11047023, 255.00,BML Building Services Ltd,01505000,,BRREP Response - General,Leybourne Lakes Country Park,M15HLP50001997,110070429
http://statistics.data.gov.uk/id/local-authority/29UP,Tonbridge & Malling Borough Council,10/11/2023,0011047024/1,11047024, 4000.00,BML Building Services Ltd,01505000,,BRREP Window/door repairs,Tonbridge Swimming Pool,M15HBP20001919,110070374
http://statistics.data.gov.uk/id/local-authority/29UP,Tonbridge & Malling Borough Council,10/11/2023,0011047025/1,11047025, 176.00,BML Building Services Ltd,01505000,,BRREP Response - General,Tonbridge Farm Pavillion,M15HGP50001997,
http://statistics.data.gov.uk/id/local-authority/29UP,Tonbridge & Malling Borough Council,10/11/2023,0011047026/1,11047026, 100.00,BML Building Services Ltd,01505000,,BRREP Window/door repairs,Tonbridge Castle / CAB,M15KFP20001919,110070486
http://statistics.data.gov.uk/id/local-authority/29UP,Tonbridge & Malling Borough Council,10/11/2023,0011047027/1,11047027, 4360.00,G C Industrial Heating Services,00578100,,BRREP Servicing - boilers,Tonbridge Swimming Pool,M15HBP20001929,110070515
http://statistics.data.gov.uk/id/local-authority/29UP,Tonbridge & Malling Borough Council,10/11/2023,0011047028/1,11047028, 4360.00,G C Industrial Heating Services,00578100,,BRREP Servicing - boilers,Tonbridge Swimming Pool,M15HBP20001929,110070514
http://statistics.data.gov.uk/id/local-authority/29UP,Tonbridge & Malling Borough Council,10/11/2023,0011047029/1,11047029, 100.00,BML Building Services Ltd,01505000,,BRREP Response - General,Tonbridge Castle Gatehouse,M15HKP50001997,110070509
http://statistics.data.gov.uk/id/local-authority/29UP,Tonbridge & Malling Borough Council,10/11/2023,0011047030/1,11047030, 139.00,Willow Pumps Ltd,00114100,,BRREP Servicing - Pumping Stn,Tonbridge Swimming Pool,M15HBP20001931,110069721
http://statistics.data.gov.uk/id/local-authority/29UP,Tonbridge & Malling Borough Council,10/11/2023,0011047030/2,11047030, 278.00,Willow Pumps Ltd,00114100,,BRREP Servicing - Pumping Stn,Ton Sportsgrnd Bldgs / Toilets,M15HCP20001931,110069721
http://statistics.data.gov.uk/id/local-authority/29UP,Tonbridge & Malling Borough Council,10/11/2023,0011047030/3,11047030, 278.00,Willow Pumps Ltd,00114100,,BRREP Servicing - Pumping Stn,Vale Rise Depot,M15LCP20001931,110069721
http://statistics.data.gov.uk/id/local-authority/29UP,Tonbridge & Malling Borough Council,10/11/2023,0012008856/1,12008856, 122.61,KCS - KCC,00054200,,Leasing Charges,Multi Function Devices,D22GB000044038,
http://statistics.data.gov.uk/id/local-authority/29UP,Tonbridge & Malling Borough Council,10/11/2023,0012008858/1,12008858, 1599.17,NTT Cloud Communications UK Ltd,01794600,,Software Hire & Support,Information Technology,D27KD000044059,
http://statistics.data.gov.uk/id/local-authority/29UP,Tonbridge & Malling Borough Council,10/11/2023,0012008859/1,12008859, 888.00,Canon (UK) Limited,00298700,,Software Hire & Support,Information Technology,D27KD000044059,
http://statistics.data.gov.uk/id/local-authority/29UP,Tonbridge & Malling Borough Council,10/11/2023,0012008860/1,12008860, 816.75,Canon (UK) Limited,00298700,,Software Hire & Support,Information Technology,D27KD000044059,
http://statistics.data.gov.uk/id/local-authority/29UP,Tonbridge & Malling Borough Council,10/11/2023,0012008861/1,12008861, 279.90,CCS Media Ltd,00018000,,Purchases,Information Technology,D27KD000040101,410032492
http://statistics.data.gov.uk/id/local-authority/29UP,Tonbridge & Malling Borough Council,10/11/2023,0012008861/2,12008861, 2.00,CCS Media Ltd,00018000,,Delivery Expenses,Information Technology,D27KD000044069,410032492
http://statistics.data.gov.uk/id/local-authority/29UP,Tonbridge & Malling Borough Council,10/11/2023,0012008862/1,12008862, 2061.24,NTT Cloud Communications UK Ltd,01794600,,Software Hire & Support,Information Technology,D27KD000044059,
http://statistics.data.gov.uk/id/local-authority/29UP,Tonbridge & Malling Borough Council,10/11/2023,0012008863/1,12008863, 195.00,BiP Solutions,00976200,,Ext Fees/IT Training,Training,D10DCDN0113564,
http://statistics.data.gov.uk/id/local-authority/29UP,Tonbridge & Malling Borough Council,10/11/2023,0021038871/1,21038871, 648.04,Landscape Services Ltd,00057600,,Grounds Maintenance Contract,Cemetery,B26MP000050103,
http://statistics.data.gov.uk/id/local-authority/29UP,Tonbridge & Malling Borough Council,10/11/2023,0021038872/10,21038872, 5103.55,Landscape Services Ltd,00057600,,Grounds Maintenance Contract,Cemetery,B26MP000050103,
http://statistics.data.gov.uk/id/local-authority/29UP,Tonbridge & Malling Borough Council,10/11/2023,0021038872/11,21038872, 256.67,Landscape Services Ltd,00057600,,Grounds Maintenance Contract,Churchyards St Peter & St Paul,B28MX000050103,
http://statistics.data.gov.uk/id/local-authority/29UP,Tonbridge & Malling Borough Council,10/11/2023,0021038872/12,21038872, 190.43,Landscape Services Ltd,00057600,,Grounds Maintenance Contract,Churchyards St Stephens,B28MY000050103,
http://statistics.data.gov.uk/id/local-authority/29UP,Tonbridge & Malling Borough Council,10/11/2023,0021038872/13,21038872, 191.95,Landscape Services Ltd,00057600,,Grounds Maintenance Contract,Grounds,D21FF000050103,
http://statistics.data.gov.uk/id/local-authority/29UP,Tonbridge & Malling Borough Council,10/11/2023,0021038872/14,21038872, 190.01,Landscape Services Ltd,00057600,,Maintenance of Grounds,Parking Off-Street,E10HA000020402,
http://statistics.data.gov.uk/id/local-authority/29UP,Tonbridge & Malling Borough Council,10/11/2023,0021038872/15,21038872, 1148.71,Landscape Services Ltd,00057600,,Maintenance of Grounds,Parking Off-Street,E10HAE00120402,
http://statistics.data.gov.uk/id/local-authority/29UP,Tonbridge & Malling Borough Council,10/11/2023,0021038872/16,21038872, 108.41,Landscape Services Ltd,00057600,,Maintenance of Grounds,Parking Off-Street,E10HAE00220402,
http://statistics.data.gov.uk/id/local-authority/29UP,Tonbridge & Malling Borough Council,10/11/2023,0021038872/17,21038872, 98.31,Landscape Services Ltd,00057600,,Maintenance of Grounds,Parking Off-Street,E10HAE00320402,
http://statistics.data.gov.uk/id/local-authority/29UP,Tonbridge & Malling Borough Council,10/11/2023,0021038872/18,21038872, 24.52,Landscape Services Ltd,00057600,,Maintenance of Grounds,Parking Off-Street,E10HAE00420402,
http://statistics.data.gov.uk/id/local-authority/29UP,Tonbridge & Malling Borough Council,10/11/2023,0021038872/19,21038872, 0.63,Landscape Services Ltd,00057600,,Maintenance of Grounds,Parking Off-Street,E10HAE00520402,
http://statistics.data.gov.uk/id/local-authority/29UP,Tonbridge & Malling Borough Council,10/11/2023,0021038872/20,21038872, 68.63,Landscape Services Ltd,00057600,,Maintenance of Grounds,Parking Off-Street,E10HAE00620402,
http://statistics.data.gov.uk/id/local-authority/29UP,Tonbridge & Malling Borough Council,10/11/2023,0021038872/21,21038872, 160.24,Landscape Services Ltd,00057600,,Maintenance of Grounds,Parking Off-Street,E10HAE01020402,
http://statistics.data.gov.uk/id/local-authority/29UP,Tonbridge & Malling Borough Council,10/11/2023,0021038872/22,21038872, 3.55,Landscape Services Ltd,00057600,,Maintenance of Grounds,Parking Off-Street,E10HAE01220402,
http://statistics.data.gov.uk/id/local-authority/29UP,Tonbridge & Malling Borough Council,10/11/2023,0021038872/23,21038872, 7.83,Landscape Services Ltd,00057600,,Maintenance of Grounds,Parking Off-Street,E10HAE01320402,
http://statistics.data.gov.uk/id/local-authority/29UP,Tonbridge & Malling Borough Council,10/11/2023,0021038872/24,21038872, 32.60,Landscape Services Ltd,00057600,,Maintenance of Grounds,Parking Off-Street,E10HAE01520402,
http://statistics.data.gov.uk/id/local-authority/29UP,Tonbridge & Malling Borough Council,10/11/2023,0021038872/25,21038872, 63.69,Landscape Services Ltd,00057600,,Maintenance of Grounds,Parking Off-Street,E10HAE01620402,
http://statistics.data.gov.uk/id/local-authority/29UP,Tonbridge & Malling Borough Council,10/11/2023,0021038872/26,21038872, 25.88,Landscape Services Ltd,00057600,,Maintenance of Grounds,Parking Off-Street,E10HAE01720402,
http://statistics.data.gov.uk/id/local-authority/29UP,Tonbridge & Malling Borough Council,10/11/2023,0021038872/27,21038872, 15.90,Landscape Services Ltd,00057600,,Maintenance of Grounds,Parking Off-Street,E10HAE02120402,
http://statistics.data.gov.uk/id/local-authority/29UP,Tonbridge & Malling Borough Council,10/11/2023,0021038872/28,21038872, 25.32,Landscape Services Ltd,00057600,,Maintenance of Grounds,Parking Off-Street,E10HAE02320402,
http://statistics.data.gov.uk/id/local-authority/29UP,Tonbridge & Malling Borough Council,10/11/2023,0021038872/29,21038872, 97.05,Landscape Services Ltd,00057600,,Maintenance of Grounds,Parking Off-Street,E10HAE02820402,
http://statistics.data.gov.uk/id/local-authority/29UP,Tonbridge & Malling Borough Council,10/11/2023,0021038872/3,21038872, 19610.82,Landscape Services Ltd,00057600,,Grounds Maintenance Contract,Sports Grounds,B13ET000050103,
http://statistics.data.gov.uk/id/local-authority/29UP,Tonbridge & Malling Borough Council,10/11/2023,0021038872/30,21038872, 26.28,Landscape Services Ltd,00057600,,Maintenance of Grounds,Parking Off-Street,E10HAE04020402,
http://statistics.data.gov.uk/id/local-authority/29UP,Tonbridge & Malling Borough Council,10/11/2023,0021038872/31,21038872, 86.65,Landscape Services Ltd,00057600,,Maintenance of Grounds,Parking Off-Street,E10HAE04520402,
http://statistics.data.gov.uk/id/local-authority/29UP,Tonbridge & Malling Borough Council,10/11/2023,0021038872/4,21038872, 8238.89,Landscape Services Ltd,00057600,,Grounds Maintenance Contract,Tonbridge Castle Grounds,B22LB000050103,
http://statistics.data.gov.uk/id/local-authority/29UP,Tonbridge & Malling Borough Council,10/11/2023,0021038872/5,21038872, 62.73,Landscape Services Ltd,00057600,,Trade Refuse Charges,Haysden Country Park,B22LC000044008,
http://statistics.data.gov.uk/id/local-authority/29UP,Tonbridge & Malling Borough Council,10/11/2023,0021038872/6,21038872, 538.16,Landscape Services Ltd,00057600,,Litter Collection,Haysden Country Park,B22LC000044061,
http://statistics.data.gov.uk/id/local-authority/29UP,Tonbridge & Malling Borough Council,10/11/2023,0021038872/7,21038872, 1849.86,Landscape Services Ltd,00057600,,Grounds Maintenance Contract,Haysden Country Park,B22LC000050103,
http://statistics.data.gov.uk/id/local-authority/29UP,Tonbridge & Malling Borough Council,10/11/2023,0021038872/8,21038872, 645.29,Landscape Services Ltd,00057600,,Grounds Maintenance Contract,Haysden Country Park,B22LC000050103,
http://statistics.data.gov.uk/id/local-authority/29UP,Tonbridge & Malling Borough Council,10/11/2023,0021038872/9,21038872, 14164.79,Landscape Services Ltd,00057600,,Grounds Maintenance Contract,Open Spaces & Amenity Areas,B22LE000050103,
http://statistics.data.gov.uk/id/local-authority/29UP,Tonbridge & Malling Borough Council,10/11/2023,0021038873/1,21038873, 723.32,Intelligent Facility Solutions Ltd,01646100,,Initial Furniture & Equipment,Capital Renewals Leisure,P05KGBC0209906,210057431
http://statistics.data.gov.uk/id/local-authority/29UP,Tonbridge & Malling Borough Council,10/11/2023,0021038874/1,21038874, 540.00,The Original Tree Surgeons Limited,01906200,219421521,Health & Safety - Trees,Countryside/Woodland Mgt,B22LG000044045,210057414
http://statistics.data.gov.uk/id/local-authority/29UP,Tonbridge & Malling Borough Council,10/11/2023,0021038875/1,21038875, 7.41,Kompan Ltd,01741600,382219257,Maintenance of Play Equipment,Haysden Country Park,B22LC000020503,210057398
http://statistics.data.gov.uk/id/local-authority/29UP,Tonbridge & Malling Borough Council,10/11/2023,0021038875/2,21038875, 32.00,Kompan Ltd,01741600,382219257,Maintenance of Play Equipment,Haysden Country Park,B22LC000020503,210057398
http://statistics.data.gov.uk/id/local-authority/29UP,Tonbridge & Malling Borough Council,10/11/2023,0021038877/1,21038877, 225.68,HAGS SMP Ltd,00793600,,Maintenance of Play Equipment,Open Spaces & Amenity Areas,B22LE000020503,210057408
http://statistics.data.gov.uk/id/local-authority/29UP,Tonbridge & Malling Borough Council,10/11/2023,0021038878/1,21038878, 52.00,Kent County Playing Fields Association,01868900,,Partnership Fees,Leisure Planning & Policy,B37SD000044048,
http://statistics.data.gov.uk/id/local-authority/29UP,Tonbridge & Malling Borough Council,10/11/2023,0021038879/1,21038879, 94.18,REDACTED PERSONAL DATA,01913400,,Events Support,Events Development,B41TJ000044041,
http://statistics.data.gov.uk/id/local-authority/29UP,Tonbridge & Malling Borough Council,10/11/2023,0021038880/1,21038880, 195.00,North Kent College,01805000,,Partnership Fees,Leisure Planning & Policy,B37SD000044048,210057376
http://statistics.data.gov.uk/id/local-authority/29UP,Tonbridge & Malling Borough Council,10/11/2023,0021038881/1,21038881, 9.34,Wicksteed Leisure Limited,00167900,,Maintenance of Play Equipment,Open Spaces & Amenity Areas,B22LE000020503,210057409
http://statistics.data.gov.uk/id/local-authority/29UP,Tonbridge & Malling Borough Council,10/11/2023,0021038883/1,21038883, 893.00,Loxton Installations Ltd,01278800,,Initial Furniture & Equipment,Capital Renewals Leisure,P05KGBC0209906,210057358
http://statistics.data.gov.uk/id/local-authority/29UP,Tonbridge & Malling Borough Council,10/11/2023,0022028140/3,22028140, 7.50,FirstAid4Less,01509300,,Health General,Food & Safety - General,H35SW000044049,
http://statistics.data.gov.uk/id/local-authority/29UP,Tonbridge & Malling Borough Council,10/11/2023,0022028141/3,22028141, 800.00,Green Recycling LTD,01563000,,Paper Recycling,Dry Recycling,H34SR000054024,
http://statistics.data.gov.uk/id/local-authority/29UP,Tonbridge & Malling Borough Council,10/11/2023,0022028142/7,22028142, 710.00,Monitor Pest Control Ltd,01476700,,Other Expenses,Pest Control,H24SE000048010,
http://statistics.data.gov.uk/id/local-authority/29UP,Tonbridge & Malling Borough Council,10/11/2023,0022028143/3,22028143, 253.00,Monitor Pest Control Ltd,01476700,,Other Expenses,Pest Control,H24SE000048010,
http://statistics.data.gov.uk/id/local-authority/29UP,Tonbridge & Malling Borough Council,10/11/2023,0022028144/3,22028144, 640.00,Monitor Pest Control Ltd,01476700,,Other Expenses,Pest Control,H24SE000048010,
http://statistics.data.gov.uk/id/local-authority/29UP,Tonbridge & Malling Borough Council,10/11/2023,0022028145/1,22028145, 5710.92,Lifestyle (KENT) LTD,01348800,,Other Expenses,Disabled Facilities Grant Mand,P03AC000009908,
http://statistics.data.gov.uk/id/local-authority/29UP,Tonbridge & Malling Borough Council,10/11/2023,0022028146/1,22028146, 822.37,Town & Country Housing Group,01385400,,Other Expenses,Disabled Facilities Grant Mand,P03AC000009908,
http://statistics.data.gov.uk/id/local-authority/29UP,Tonbridge & Malling Borough Council,10/11/2023,0022028147/1,22028147, 4014.00,Access & Automation Ltd,01773400,,Other Expenses,Disabled Facilities Grant Mand,P03AC000009908,
http://statistics.data.gov.uk/id/local-authority/29UP,Tonbridge & Malling Borough Council,10/11/2023,0022028148/1,22028148, 5300.00,Dolphin Stairlifts,00698900,,Other Expenses,Disabled Facilities Grant Mand,P03AC000009908,
http://statistics.data.gov.uk/id/local-authority/29UP,Tonbridge & Malling Borough Council,10/11/2023,0022028149/1,22028149, 2106.78,Town & Country Housing Group,01385400,,Other Expenses,Disabled Facilities Grant Mand,P03AC000009908,
http://statistics.data.gov.uk/id/local-authority/29UP,Tonbridge & Malling Borough Council,10/11/2023,0022028150/1,22028150, 1080.00,1st  Steps Housing Kent,01716100,,Temporary Accommodation,Homelessness,C01AA000044051,
http://statistics.data.gov.uk/id/local-authority/29UP,Tonbridge & Malling Borough Council,10/11/2023,0022028151/1,22028151, 2531.54,The Care Group-Housing & Care Trust,01699600,,Temporary Accommodation,Homelessness,C01AA000044051,
http://statistics.data.gov.uk/id/local-authority/29UP,Tonbridge & Malling Borough Council,10/11/2023,0022028152/1,22028152, 27572.00,Social & Community Care,01768400,,Temporary Accommodation,Homelessness,C01AA000044051,
http://statistics.data.gov.uk/id/local-authority/29UP,Tonbridge & Malling Borough Council,10/11/2023,0022028153/1,22028153, 1950.00,Centennial Property Ltd,01901000,,Temporary Accommodation,Homelessness,C01AA000044051,
http://statistics.data.gov.uk/id/local-authority/29UP,Tonbridge & Malling Borough Council,10/11/2023,0022028154/1,22028154, 4870.50,Kent Accommodation Ltd,01722000,,Temporary Accommodation,Homelessness,C01AA000044051,
http://statistics.data.gov.uk/id/local-authority/29UP,Tonbridge & Malling Borough Council,10/11/2023,0022028155/1,22028155, 8430.00,Less Homeless Ltd,01489300,,Temporary Accommodation,Homelessness,C01AA000044051,
http://statistics.data.gov.uk/id/local-authority/29UP,Tonbridge & Malling Borough Council,10/11/2023,0022028156/1,22028156, 57893.53,Look Ahead,01746900,,Professional Fees,Homelessness,C01AAROUG44001,220003391
http://statistics.data.gov.uk/id/local-authority/29UP,Tonbridge & Malling Borough Council,10/11/2023,0022028157/1,22028157, 39378.00,Paramount Independent Property Suppliers,01595300,,Temporary Accommodation,Homelessness,C01AA000044051,
http://statistics.data.gov.uk/id/local-authority/29UP,Tonbridge & Malling Borough Council,10/11/2023,0022028159/1,22028159, 42674.50,Porchlight,01416700,,Professional Fees,Homelessness,C01AAROUG44001,220003400
http://statistics.data.gov.uk/id/local-authority/29UP,Tonbridge & Malling Borough Council,10/11/2023,0022028160/1,22028160, 225.25,Premier Inn,01217400,,Temporary Accommodation,Homelessness,C01AA000044051,
http://statistics.data.gov.uk/id/local-authority/29UP,Tonbridge & Malling Borough Council,10/11/2023,0022028161/1,22028161, 1872.00,Premier Property Providers,01785400,,Temporary Accommodation,Homelessness,C01AA000044051,
http://statistics.data.gov.uk/id/local-authority/29UP,Tonbridge & Malling Borough Council,10/11/2023,0022028162/1,22028162, 9720.00,Simon Niblett Lettings,00072600,,Temporary Accommodation,Homelessness,C01AA000044051,
http://statistics.data.gov.uk/id/local-authority/29UP,Tonbridge & Malling Borough Council,10/11/2023,0022028163/1,22028163, 3245.00,Simon Niblett Lettings,00072600,,Temporary Accommodation,Homelessness,C01AA000044051,
http://statistics.data.gov.uk/id/local-authority/29UP,Tonbridge & Malling Borough Council,10/11/2023,0022028164/1,22028164, 1470.00,Simply Rented Ltd ,01691400,,Temporary Accommodation,Homelessness,C01AA000044051,
http://statistics.data.gov.uk/id/local-authority/29UP,Tonbridge & Malling Borough Council,10/11/2023,0022028165/1,22028165, 5820.75,YMCA Thames Gateway Group,01887700,,Professional Fees,Homelessness,C01AATNPR44001,
http://statistics.data.gov.uk/id/local-authority/29UP,Tonbridge & Malling Borough Council,10/11/2023,0022028166/1,22028166, 732.50,The Speedy Kitchen,01893600,,Healthy Living Initiatives,Public Health - Healthy Living,H40SYVH0048145,220003401
http://statistics.data.gov.uk/id/local-authority/29UP,Tonbridge & Malling Borough Council,10/11/2023,0022028167/1,22028167, 583.00,The Speedy Kitchen,01893600,,Healthy Living Initiatives,Public Health - Healthy Living,H40SYVH0048145,220003402
http://statistics.data.gov.uk/id/local-authority/29UP,Tonbridge & Malling Borough Council,10/11/2023,0022028168/1,22028168, 515.00,RoSPA Enterprises Ltd,00085200,,Professional Membership,Env Hlth & Hsg Sals&Overheads,D01AVDV0147001,
http://statistics.data.gov.uk/id/local-authority/29UP,Tonbridge & Malling Borough Council,10/11/2023,0022028170/1,22028170, 700.00,Craemer UK LTD,01616400,,Purchases,Food Recycling,H34SS000040101,220003393
http://statistics.data.gov.uk/id/local-authority/29UP,Tonbridge & Malling Borough Council,10/11/2023,0022028170/2,22028170, 55.00,Craemer UK LTD,01616400,,Purchases,Food Recycling,H34SS000040101,220003393
http://statistics.data.gov.uk/id/local-authority/29UP,Tonbridge & Malling Borough Council,10/11/2023,0022028171/1,22028171, 23414.00,Elite Complete Build LTD,01625900,,Other Expenses,Disabled Facilities Grant Mand,P03AC000009908,
http://statistics.data.gov.uk/id/local-authority/29UP,Tonbridge & Malling Borough Council,10/11/2023,0022028172/1,22028172, 3364.66,Town & Country Housing Group,01385400,,Other Expenses,Disabled Facilities Grant Mand,P03AC000009908,
http://statistics.data.gov.uk/id/local-authority/29UP,Tonbridge & Malling Borough Council,10/11/2023,0022028173/1,22028173, 336.90,Amazon EU SARL,01738400,,Healthy Living Initiatives,Public Health - Healthy Living,H40SY000048145,
http://statistics.data.gov.uk/id/local-authority/29UP,Tonbridge & Malling Borough Council,10/11/2023,0031019745/3,31019745, 72.91,Shell U.K. Oil Products Limited,01673300,,"Petrol, Diesel & Oil",Parking Off-Street,E10HA000030106,
http://statistics.data.gov.uk/id/local-authority/29UP,Tonbridge & Malling Borough Council,10/11/2023,0031019745/4,31019745, 72.91,Shell U.K. Oil Products Limited,01673300,,"Petrol, Diesel & Oil",Parking On-Street,E10HD000030106,
http://statistics.data.gov.uk/id/local-authority/29UP,Tonbridge & Malling Borough Council,10/11/2023,0031019746/3,31019746, 3250.33,Tonbridge & Malling Leisure Trust,01469100,,Ticket Refunds - Lower Castle,Parking Off-Street,E10HAE01344199,
http://statistics.data.gov.uk/id/local-authority/29UP,Tonbridge & Malling Borough Council,10/11/2023,0031019747/3,31019747, 40.00,Kings Hill Garage Ltd,01546300,,Transport Repair & Maintenance,Parking Off-Street,E10HA000030103,
http://statistics.data.gov.uk/id/local-authority/29UP,Tonbridge & Malling Borough Council,10/11/2023,0031019747/4,31019747, 60.00,Kings Hill Garage Ltd,01546300,,Transport Repair & Maintenance,Parking On-Street,E10HD000030103,
http://statistics.data.gov.uk/id/local-authority/29UP,Tonbridge & Malling Borough Council,10/11/2023,0031019748/3,31019748, 1486.21,CDER Group,01773300,,Adjudication & Enforcement Ser,Parking Off-Street,E10HA000044230,
http://statistics.data.gov.uk/id/local-authority/29UP,Tonbridge & Malling Borough Council,10/11/2023,0031019750/1,31019750, 195.48,British Telecommunications Plc,00012800,,Maintenance - General,Security Services Management,E09GA000040135,
http://statistics.data.gov.uk/id/local-authority/29UP,Tonbridge & Malling Borough Council,10/11/2023,0031019752/1,31019752, 3475.00,DSSL Group Ltd,01839500,,CCTV Monitoring Station,Security Services Management,E09GA000051020,310042803
http://statistics.data.gov.uk/id/local-authority/29UP,Tonbridge & Malling Borough Council,10/11/2023,0031019753/1,31019753, 2013.10,HEREF Tonbridge Ltd,01518900,,Pay to Principal - Botany CP,Parking Off-Street,E10HAE00444197,
http://statistics.data.gov.uk/id/local-authority/29UP,Tonbridge & Malling Borough Council,10/11/2023,0031019756/1,31019756, 171.36,KM Media Group Ltd,00053900,,Advertising General,Parking On-Street,E10HDZ99944216,310043146
http://statistics.data.gov.uk/id/local-authority/29UP,Tonbridge & Malling Borough Council,10/11/2023,0031019757/1,31019757, 267.75,KM Media Group Ltd,00053900,,Advertising General,Parking On-Street,E10HDZ99944216,310043144
http://statistics.data.gov.uk/id/local-authority/29UP,Tonbridge & Malling Borough Council,10/11/2023,0031019758/1,31019758, 195.48,British Telecommunications Plc,00012800,,Maintenance - General,Security Services Management,E09GA000040135,
http://statistics.data.gov.uk/id/local-authority/29UP,Tonbridge & Malling Borough Council,10/11/2023,0032010492/1,32010492, 1504.00,Carrington West Limited,01844500,,Temporary Staff,Planning Sals&Overheads,D01AJDJ0111300,
http://statistics.data.gov.uk/id/local-authority/29UP,Tonbridge & Malling Borough Council,10/11/2023,0032010493/1,32010493, 414.00,Carrington West Limited,01844500,,Temporary Staff,Planning Sals&Overheads,D01AJDJ0111300,
http://statistics.data.gov.uk/id/local-authority/29UP,Tonbridge & Malling Borough Council,10/11/2023,0032010494/1,32010494, 4999.05,Tetlow King Planning Ltd,01290900,,Application & Appeals,Development Management,A01AB000044194,
http://statistics.data.gov.uk/id/local-authority/29UP,Tonbridge & Malling Borough Council,10/11/2023,0032010495/1,32010495, 2166.00,Vivid Resourcing,01773700,,Temporary Staff,Planning Sals&Overheads,D01AJDJ0111300,
http://statistics.data.gov.uk/id/local-authority/29UP,Tonbridge & Malling Borough Council,10/11/2023,0032010496/1,32010496, 1666.27,The Oyster Partnership,01196400,,Temporary Staff,Planning Sals&Overheads,D01AJDJ0111300,
http://statistics.data.gov.uk/id/local-authority/29UP,Tonbridge & Malling Borough Council,10/11/2023,0032010497/1,32010497, 1577.55,The Oyster Partnership,01196400,,Temporary Staff,Planning Sals&Overheads,D01AJDJ0111300,
http://statistics.data.gov.uk/id/local-authority/29UP,Tonbridge & Malling Borough Council,10/11/2023,0032010498/1,32010498, 1069.92,Hays Specialist Recruitment Limited,01879200,773695871,Temporary Staff,Planning Sals&Overheads,D01AJDJ0111300,
http://statistics.data.gov.uk/id/local-authority/29UP,Tonbridge & Malling Borough Council,10/11/2023,0041035946/3,41035946, 695.00,Airey Consultancy Services Ltd,01760800,,Temporary Staff,Finance Sals&Overheads,D01AFDF1111300,
http://statistics.data.gov.uk/id/local-authority/29UP,Tonbridge & Malling Borough Council,10/11/2023,0041035947/3,41035947, 105.07,Adelante Software Limited,01393800,812115871,Credit Card Commission,Banking Arrangements,D43QK000044082,
http://statistics.data.gov.uk/id/local-authority/29UP,Tonbridge & Malling Borough Council,10/11/2023,0041035948/3,41035948, 20.00,Computershare Voucher Services,01212600,,Childcare Scheme,Finance Sals&Overheads,D01AFDF0911136,
http://statistics.data.gov.uk/id/local-authority/29UP,Tonbridge & Malling Borough Council,10/11/2023,0041035948/4,41035948, 1.40,Computershare Voucher Services,01212600,,National Insurance,Finance Sals&Overheads,D01AFDF0911191,
http://statistics.data.gov.uk/id/local-authority/29UP,Tonbridge & Malling Borough Council,10/11/2023,0041035948/5,41035948, 20.00,Computershare Voucher Services,01212600,,Childcare Scheme,Env Hlth & Hsg Sals&Overheads,D01AVDV0211136,
http://statistics.data.gov.uk/id/local-authority/29UP,Tonbridge & Malling Borough Council,10/11/2023,0041035948/6,41035948, 1.40,Computershare Voucher Services,01212600,,National Insurance,Env Hlth & Hsg Sals&Overheads,D01AVDV0211191,
http://statistics.data.gov.uk/id/local-authority/29UP,Tonbridge & Malling Borough Council,10/11/2023,0041035952/1,41035952, 1557.00,Kent County Council,00053700,,Professional Fees,Public Accountability,D29LR000044001,
http://statistics.data.gov.uk/id/local-authority/29UP,Tonbridge & Malling Borough Council,10/11/2023,0041035955/1,41035955, 48594.00,Kent County Council,00322500,,Temporary Staff,Finance Sals&Overheads,D01AFDF0611300,
http://statistics.data.gov.uk/id/local-authority/29UP,Tonbridge & Malling Borough Council,10/11/2023,0041035956/1,41035956, 1575.00,Kent County Council,00322500,,Contract Services,Finance Sals&Overheads,D01AFDF0044005,410032487
http://statistics.data.gov.uk/id/local-authority/29UP,Tonbridge & Malling Borough Council,10/11/2023,0041035957/1,41035957, 1000.00,2520 Tonbridge ATC,01757200,,Initiatives,UK Shared Prosperity Fund,D52TH000048135,
http://statistics.data.gov.uk/id/local-authority/29UP,Tonbridge & Malling Borough Council,10/11/2023,0041035960/1,41035960, 3545.80,Rundle & Co Ltd,00087200,,Bailiffs Commission,Local Revenue & NNDR Collect,D41QA000044075,
http://statistics.data.gov.uk/id/local-authority/29UP,Tonbridge & Malling Borough Council,10/11/2023,0041035961/1,41035961, 2868.37,Rundle & Co Ltd,00087200,,Bailiffs Commission,Local Revenue & NNDR Collect,D41QA000044075,
http://statistics.data.gov.uk/id/local-authority/29UP,Tonbridge & Malling Borough Council,10/11/2023,0041035962/1,41035962, 2020.32,Maidstone Borough Council,01173700,,Bailiffs Commission,Local Revenue & NNDR Collect,D41QA000044075,
http://statistics.data.gov.uk/id/local-authority/29UP,Tonbridge & Malling Borough Council,10/11/2023,0041035963/1,41035963, 13.43,Maidstone Borough Council,01173700,,Bailiffs Commission,Local Revenue & NNDR Collect,D41QA000044075,
http://statistics.data.gov.uk/id/local-authority/29UP,Tonbridge & Malling Borough Council,10/11/2023,0041035964/1,41035964, 2670.50,Greenhalgh Kerr,01590200,,Bailiffs Commission,Local Revenue & NNDR Collect,D41QA000044075,
http://statistics.data.gov.uk/id/local-authority/29UP,Tonbridge & Malling Borough Council,10/11/2023,0041035964/2,41035964, 451.00,Greenhalgh Kerr,01590200,,Bailiffs Commission,Local Revenue & NNDR Collect,D41QA000044075,
http://statistics.data.gov.uk/id/local-authority/29UP,Tonbridge & Malling Borough Council,10/11/2023,0041035964/3,41035964, 20.00,Greenhalgh Kerr,01590200,,Bailiffs Commission,Local Revenue & NNDR Collect,D41QA000044075,
http://statistics.data.gov.uk/id/local-authority/29UP,Tonbridge & Malling Borough Council,10/11/2023,0041035964/4,41035964, 15.00,Greenhalgh Kerr,01590200,,Bailiffs Commission,Local Revenue & NNDR Collect,D41QA000044075,
http://statistics.data.gov.uk/id/local-authority/29UP,Tonbridge & Malling Borough Council,10/11/2023,0051008853/1,51008853, 250.00,Baxterstory,01736700,,Ext Fees/Prof & Tech,Training,D10DC000013561,510010653
http://statistics.data.gov.uk/id/local-authority/29UP,Tonbridge & Malling Borough Council,10/18/2023,0011047031/1,11047031, 4600.00,Thomson Snell & Passmore,00101700,,Legal Fees,Legal Sals&Overheads,D01ARDR0044002,
http://statistics.data.gov.uk/id/local-authority/29UP,Tonbridge & Malling Borough Council,10/18/2023,0011047032/1,11047032, 913.00,Thomson Snell & Passmore,00101700,,Legal Fees,Legal Sals&Overheads,D01ARDR0044002,
http://statistics.data.gov.uk/id/local-authority/29UP,Tonbridge & Malling Borough Council,10/18/2023,0011047033/1,11047033, 1882.00,Thomson Snell & Passmore,00101700,,Legal Fees,Legal Sals&Overheads,D01ARDR0044002,
http://statistics.data.gov.uk/id/local-authority/29UP,Tonbridge & Malling Borough Council,10/18/2023,0011047034/1,11047034, 670.50,Thomson Snell & Passmore,00101700,,Legal Fees,Legal Sals&Overheads,D01ARDR0044002,
http://statistics.data.gov.uk/id/local-authority/29UP,Tonbridge & Malling Borough Council,10/18/2023,0011047035/1,11047035, 3394.00,Thomson Snell & Passmore,00101700,,Legal Fees,Legal Sals&Overheads,D01ARDR0044002,
http://statistics.data.gov.uk/id/local-authority/29UP,Tonbridge & Malling Borough Council,10/18/2023,0011047036/1,11047036, 1476.58,Sellick Partnership Group Limited,01336800,,Temporary Staff,Legal Sals&Overheads,D01ARDR0011300,
http://statistics.data.gov.uk/id/local-authority/29UP,Tonbridge & Malling Borough Council,10/18/2023,0011047037/1,11047037, 1204.40,Sellick Partnership Group Limited,01336800,,Temporary Staff,Legal Sals&Overheads,D01ARDR0011300,
http://statistics.data.gov.uk/id/local-authority/29UP,Tonbridge & Malling Borough Council,10/18/2023,0011047038/1,11047038, 1.83,REDACTED PERSONAL DATA,01668600,,Legal Fees,Legal Sals&Overheads,D01ARDR0044002,
http://statistics.data.gov.uk/id/local-authority/29UP,Tonbridge & Malling Borough Council,10/18/2023,0011047039/1,11047039, 74.20,Kent Crisps Ltd,01806500,,Purchases,TIC Stock Account,K18AX000001002,
http://statistics.data.gov.uk/id/local-authority/29UP,Tonbridge & Malling Borough Council,10/18/2023,0011047040/1,11047040, 142.38,Key Craft,01148600,,Purchases,TIC Stock Account,K18AX000001002,
http://statistics.data.gov.uk/id/local-authority/29UP,Tonbridge & Malling Borough Council,10/18/2023,0011047041/1,11047041, 1561.36,The Oyster Partnership,01196400,,Temporary Staff,Admin & Prop Sals&Overheads,D01AADA1111300,
http://statistics.data.gov.uk/id/local-authority/29UP,Tonbridge & Malling Borough Council,10/18/2023,0011047042/1,11047042, 207.45,Initial Washroom Hygiene,00048300,,Laundry - Roller Towels,Cleaning & Security,D21FD000042003,
http://statistics.data.gov.uk/id/local-authority/29UP,Tonbridge & Malling Borough Council,10/18/2023,0011047043/1,11047043, 1507.52,The Oyster Partnership,01196400,,Temporary Staff,Admin & Prop Sals&Overheads,D01AADA1111300,
http://statistics.data.gov.uk/id/local-authority/29UP,Tonbridge & Malling Borough Council,10/18/2023,0011047044/1,11047044, 999.00,Ginette�s Nail and Beauty Retreat,01919500,,Contract Payments,UK Shared Prosperity Fund,P06FNFN4009904,
http://statistics.data.gov.uk/id/local-authority/29UP,Tonbridge & Malling Borough Council,10/18/2023,0011047045/1,11047045, 501.00,Ginette�s Nail and Beauty Retreat,01919500,,Contract Payments,UK Shared Prosperity Fund,P06FNFN4009904,
http://statistics.data.gov.uk/id/local-authority/29UP,Tonbridge & Malling Borough Council,10/18/2023,0011047046/1,11047046, 3500.00,Thomson Snell & Passmore,00101700,,Legal Fees,Legal Sals&Overheads,D01ARDR0044002,
http://statistics.data.gov.uk/id/local-authority/29UP,Tonbridge & Malling Borough Council,10/18/2023,0011047047/1,11047047, 589.41,KH Recruitment Ltd,01738900,,Temporary Staff,Personnel Sals&Overheads,D01ABDB0311300,
http://statistics.data.gov.uk/id/local-authority/29UP,Tonbridge & Malling Borough Council,10/18/2023,0011047048/1,11047048, 3148.00,Thomson Snell & Passmore,00101700,,Legal Fees,Legal Sals&Overheads,D01ARDR0044002,
http://statistics.data.gov.uk/id/local-authority/29UP,Tonbridge & Malling Borough Council,10/18/2023,0011047049/1,11047049, 478.50,Thomson Snell & Passmore,00101700,,Legal Fees,Legal Sals&Overheads,D01ARDR0044002,
http://statistics.data.gov.uk/id/local-authority/29UP,Tonbridge & Malling Borough Council,10/18/2023,0011047050/1,11047050, 589.41,KH Recruitment Ltd,01738900,,Temporary Staff,Personnel Sals&Overheads,D01ABDB0311300,
http://statistics.data.gov.uk/id/local-authority/29UP,Tonbridge & Malling Borough Council,10/18/2023,0011047050/2,11047050, 469.94,KH Recruitment Ltd,01738900,,Temporary Staff,Personnel Sals&Overheads,D01ABDB0311300,
http://statistics.data.gov.uk/id/local-authority/29UP,Tonbridge & Malling Borough Council,10/18/2023,0011047052/1,11047052, 590.00,G C Industrial Heating Services,00578100,,BRREP Response - General,Angel Centre,M15HAP50001997,
http://statistics.data.gov.uk/id/local-authority/29UP,Tonbridge & Malling Borough Council,10/18/2023,0011047053/1,11047053, 100.00,BML Building Services Ltd,01505000,,BRREP Response - General,Shops & Maisonettes,M15NAP50001997,
http://statistics.data.gov.uk/id/local-authority/29UP,Tonbridge & Malling Borough Council,10/18/2023,0011047054/1,11047054, 187.65,Biffa Waste Services Ltd,01284500,,Trade Refuse Charges,Cleaning & Security,D21FD000044008,
http://statistics.data.gov.uk/id/local-authority/29UP,Tonbridge & Malling Borough Council,10/18/2023,0011047055/1,11047055, 48.72,Biffa Waste Services Ltd,01284500,,Trade Refuse Charges,Cleaning & Security,D21FD000044008,
http://statistics.data.gov.uk/id/local-authority/29UP,Tonbridge & Malling Borough Council,10/18/2023,0011047056/1,11047056, 48.72,Biffa Waste Services Ltd,01284500,,Trade Refuse Charges,Cleaning & Security,D21FD000044008,
http://statistics.data.gov.uk/id/local-authority/29UP,Tonbridge & Malling Borough Council,10/18/2023,0011047057/1,11047057, 122.99,Biffa Waste Services Ltd,01284500,,Trade Refuse Charges,Cleaning & Security,D21FD000044008,
http://statistics.data.gov.uk/id/local-authority/29UP,Tonbridge & Malling Borough Council,10/18/2023,0011047058/1,11047058, 85.20,Biffa Waste Services Ltd,01284500,,Trade Refuse Charges,Cleaning & Security,D21FD000044008,
http://statistics.data.gov.uk/id/local-authority/29UP,Tonbridge & Malling Borough Council,10/18/2023,0011047059/1,11047059, 158.13,Biffa Waste Services Ltd,01284500,,Trade Refuse Charges,Cleaning & Security,D21FD000044008,
http://statistics.data.gov.uk/id/local-authority/29UP,Tonbridge & Malling Borough Council,10/18/2023,0011047060/1,11047060, 2163.27,Royal Mail,00086200,,Purchases,Mailsort Stock Account,K37BR000001002,
http://statistics.data.gov.uk/id/local-authority/29UP,Tonbridge & Malling Borough Council,10/18/2023,0011047060/2,11047060, 8.48,Royal Mail,00086200,,Purchases,Mailsort Stock Account,K37BR000001002,
http://statistics.data.gov.uk/id/local-authority/29UP,Tonbridge & Malling Borough Council,10/18/2023,0011047061/1,11047061, 87.30,Royal Mail,00086200,,Postages - Business Reply,Electoral Registration,D31MF000045003,
http://statistics.data.gov.uk/id/local-authority/29UP,Tonbridge & Malling Borough Council,10/18/2023,0011047061/2,11047061, 20.00,Royal Mail,00086200,,Purchases,Business Reply Stock Account,K14AT000001002,
http://statistics.data.gov.uk/id/local-authority/29UP,Tonbridge & Malling Borough Council,10/18/2023,0011047063/1,11047063, 99.90,Royal Mail,00086200,,Purchases,Business Reply Stock Account,K14AT000001002,
http://statistics.data.gov.uk/id/local-authority/29UP,Tonbridge & Malling Borough Council,10/18/2023,0011047064/1,11047064, 2349.44,Royal Mail,00086200,,Purchases,Mailsort Stock Account,K37BR000001002,
http://statistics.data.gov.uk/id/local-authority/29UP,Tonbridge & Malling Borough Council,10/18/2023,0011047064/2,11047064, 2.10,Royal Mail,00086200,,Purchases,Mailsort Stock Account,K37BR000001002,
http://statistics.data.gov.uk/id/local-authority/29UP,Tonbridge & Malling Borough Council,10/18/2023,0011047065/1,11047065, 1217.80,Sellick Partnership Group Limited,01336800,,Temporary Staff,Legal Sals&Overheads,D01ARDR0011300,
http://statistics.data.gov.uk/id/local-authority/29UP,Tonbridge & Malling Borough Council,10/18/2023,0011047068/1,11047068, 700.00,EW Legal Costing Ltd,01830000,,Legal Fees,Legal Sals&Overheads,D01ARDR0044002,
http://statistics.data.gov.uk/id/local-authority/29UP,Tonbridge & Malling Borough Council,10/18/2023,0011047069/3,11047069, 531.25,Vivid Resourcing,01773700,,Temporary Staff,Legal Sals&Overheads,D01ARDR0011300,
http://statistics.data.gov.uk/id/local-authority/29UP,Tonbridge & Malling Borough Council,10/18/2023,0011047070/1,11047070, 1090.00,Record UK Ltd,01116900,,BRREP Servicing-entrance doors,Tonbridge Swimming Pool,M15HBP20001927,110070485
http://statistics.data.gov.uk/id/local-authority/29UP,Tonbridge & Malling Borough Council,10/18/2023,0011047071/1,11047071, 1188.50,H20 Servicing Limited,00888800,808041553,BRREP Servicing - pool plant,Larkfield Leisure Centre,M15HDP20001910,110070163
http://statistics.data.gov.uk/id/local-authority/29UP,Tonbridge & Malling Borough Council,10/18/2023,0011047072/1,11047072, 1047.50,H20 Servicing Limited,00888800,808041553,BRREP Servicing - pool plant,Tonbridge Swimming Pool,M15HBP20001910,110070163
http://statistics.data.gov.uk/id/local-authority/29UP,Tonbridge & Malling Borough Council,10/18/2023,0011047073/1,11047073, 140.00,East Sussex Fire Ltd,01843100,,Repairs & Mtce to Buildings,Homelessness,C01AATNHS20101,110070238
http://statistics.data.gov.uk/id/local-authority/29UP,Tonbridge & Malling Borough Council,10/18/2023,0011047074/1,11047074, 1449.95,BW May & Son Ltd,01853700,,BRREP General Maintenance,Tonbridge Castle Gatehouse,M15HKP10001900,110069844
http://statistics.data.gov.uk/id/local-authority/29UP,Tonbridge & Malling Borough Council,10/18/2023,0011047075/1,11047075, 2000.00,BML Building Services Ltd,01505000,,BRREP Window/door repairs,Angel Centre,M15HAP20001919,110070375
http://statistics.data.gov.uk/id/local-authority/29UP,Tonbridge & Malling Borough Council,10/18/2023,0011047075/2,11047075, 2000.00,BML Building Services Ltd,01505000,,BRREP Window/door repairs,Angel Centre,M15HAP20001919,110070375
http://statistics.data.gov.uk/id/local-authority/29UP,Tonbridge & Malling Borough Council,10/18/2023,0011047076/1,11047076, 80.00,BML Building Services Ltd,01505000,,BRREP Response - General,Tonbridge Swimming Pool,M15HBP50001997,110070513
http://statistics.data.gov.uk/id/local-authority/29UP,Tonbridge & Malling Borough Council,10/18/2023,0011047077/1,11047077, 60.00,BML Building Services Ltd,01505000,,BRREP Response - General,Leybourne Lakes Country Park,M15HLP50001997,110070494
http://statistics.data.gov.uk/id/local-authority/29UP,Tonbridge & Malling Borough Council,10/18/2023,0011047078/1,11047078, 45032.52,Bishop Ltd,01917900,,BRREP General Maintenance,PC - General,M15JAP10001900,110070512
http://statistics.data.gov.uk/id/local-authority/29UP,Tonbridge & Malling Borough Council,10/18/2023,0011047079/1,11047079, 1540.00,G C Industrial Heating Services,00578100,,BRREP Response - General,Leis Man Poult Wood Golf Centr,M15HEP50001997,110070453
http://statistics.data.gov.uk/id/local-authority/29UP,Tonbridge & Malling Borough Council,10/18/2023,0011047080/1,11047080, 140.00,G C Industrial Heating Services,00578100,,BRREP Response - General,Leybourne Lakes Country Park,M15HLP50001997,110070516
http://statistics.data.gov.uk/id/local-authority/29UP,Tonbridge & Malling Borough Council,10/18/2023,0011047081/1,11047081, 352.00,Chillmech Limited,00978700,,BRREP Servicing-Air Condition,Leis Man Poult Wood Golf Centr,M15HEP20001935,110070437
http://statistics.data.gov.uk/id/local-authority/29UP,Tonbridge & Malling Borough Council,10/18/2023,0011047082/1,11047082, 5260.00,BML Building Services Ltd,01505000,,BRREP Window/door repairs,Tonbridge Swimming Pool,M15HBP20001919,110070374
http://statistics.data.gov.uk/id/local-authority/29UP,Tonbridge & Malling Borough Council,10/18/2023,0011047083/1,11047083, 1320.00,G C Industrial Heating Services,00578100,,BRREP Response - General,Leis Man Poult Wood Golf Centr,M15HEP50001997,110070564
http://statistics.data.gov.uk/id/local-authority/29UP,Tonbridge & Malling Borough Council,10/18/2023,0011047084/1,11047084, 885.00,System Hygienics Ltd,00600300,,BRREP Fire Damper Testing,Angel Centre,M15HAP30001970,110070452
http://statistics.data.gov.uk/id/local-authority/29UP,Tonbridge & Malling Borough Council,10/18/2023,0011047085/1,11047085, 1155.00,System Hygienics Ltd,00600300,,BRREP Fire Damper Testing,Tonbridge Swimming Pool,M15HBP30001970,110070451
http://statistics.data.gov.uk/id/local-authority/29UP,Tonbridge & Malling Borough Council,10/18/2023,0011047086/1,11047086, 248.00,Chillmech Limited,00978700,,BRREP Servicing-Air Condition,Angel Centre,M15HAP20001935,110070542
http://statistics.data.gov.uk/id/local-authority/29UP,Tonbridge & Malling Borough Council,10/18/2023,0011047087/1,11047087, 179.79,DORMA UK Ltd,00413500,549361128,BRREP Servicing-entrance doors,Angel Centre,M15HAP20001927,110070424
http://statistics.data.gov.uk/id/local-authority/29UP,Tonbridge & Malling Borough Council,10/18/2023,0011047088/1,11047088, 450.00,BML Building Services Ltd,01505000,,BRREP Response - General,Larkfield Leisure Centre,M15HDP50001997,110070521
http://statistics.data.gov.uk/id/local-authority/29UP,Tonbridge & Malling Borough Council,10/18/2023,0011047089/1,11047089, 2123.44,GSF SANDYLIGHT LTD,01705300,,Temporary Staff,Admin & Prop Sals&Overheads,D01AADA0511300,
http://statistics.data.gov.uk/id/local-authority/29UP,Tonbridge & Malling Borough Council,10/18/2023,0011047091/1,11047091, 857.00,BML Building Services Ltd,01505000,,BRREP Response - General,Leybourne Lakes Country Park,M15HLP50001997,110070493
http://statistics.data.gov.uk/id/local-authority/29UP,Tonbridge & Malling Borough Council,10/18/2023,0011047092/1,11047092, 3183.30,TMS Protection Ltd,01744300,,Office Security,Ton Castle Council Chamber,D21FC000044047,
http://statistics.data.gov.uk/id/local-authority/29UP,Tonbridge & Malling Borough Council,10/18/2023,0011047092/2,11047092, 1158.30,TMS Protection Ltd,01744300,,Office Security,Ton Castle Council Chamber,D21FC000044047,
http://statistics.data.gov.uk/id/local-authority/29UP,Tonbridge & Malling Borough Council,10/18/2023,0011047092/3,11047092, 194.40,TMS Protection Ltd,01744300,,Office Security,Ton Castle Council Chamber,D21FC000044047,
http://statistics.data.gov.uk/id/local-authority/29UP,Tonbridge & Malling Borough Council,10/18/2023,0012008864/1,12008864, 92.05,KCS - KCC,00054200,,Copy Charges,Multi Function Devices,D22GB000040125,
http://statistics.data.gov.uk/id/local-authority/29UP,Tonbridge & Malling Borough Council,10/18/2023,0012008865/1,12008865, 199.32,KCS - KCC,00054200,,Copy Charges,Multi Function Devices,D22GB000040125,
http://statistics.data.gov.uk/id/local-authority/29UP,Tonbridge & Malling Borough Council,10/18/2023,0012008866/1,12008866, 117.75,KCS - KCC,00054200,,Copy Charges,Multi Function Devices,D22GB000040125,
http://statistics.data.gov.uk/id/local-authority/29UP,Tonbridge & Malling Borough Council,10/18/2023,0012008868/1,12008868, 409.90,CCS Media Ltd,00018000,,Purchases,Information Technology,D27KD000040101,410032492
http://statistics.data.gov.uk/id/local-authority/29UP,Tonbridge & Malling Borough Council,10/18/2023,0012008868/2,12008868, 149.90,CCS Media Ltd,00018000,,Purchases,Information Technology,D27KD000040101,410032492
http://statistics.data.gov.uk/id/local-authority/29UP,Tonbridge & Malling Borough Council,10/18/2023,0012008868/3,12008868, 674.85,CCS Media Ltd,00018000,,Purchases,Information Technology,D27KD000040101,410032492
http://statistics.data.gov.uk/id/local-authority/29UP,Tonbridge & Malling Borough Council,10/18/2023,0012008868/4,12008868, 6.95,CCS Media Ltd,00018000,,Delivery Expenses,Information Technology,D27KD000044069,410032492
http://statistics.data.gov.uk/id/local-authority/29UP,Tonbridge & Malling Borough Council,10/18/2023,0012008869/1,12008869, 89.00,Get It Repaired,01631300,287357752,Maintenance - Micros,Information Technology,D27KD000040140,410032493
http://statistics.data.gov.uk/id/local-authority/29UP,Tonbridge & Malling Borough Council,10/18/2023,0012008870/1,12008870, 149.90,CCS Media Ltd,00018000,,Purchases,Information Technology,D27KD000040101,410032494
http://statistics.data.gov.uk/id/local-authority/29UP,Tonbridge & Malling Borough Council,10/18/2023,0012008870/2,12008870, 11.49,CCS Media Ltd,00018000,,Purchases,Information Technology,D27KD000040101,410032494
http://statistics.data.gov.uk/id/local-authority/29UP,Tonbridge & Malling Borough Council,10/18/2023,0012008870/3,12008870, 5.20,CCS Media Ltd,00018000,,Delivery Expenses,Information Technology,D27KD000044069,410032494
http://statistics.data.gov.uk/id/local-authority/29UP,Tonbridge & Malling Borough Council,10/18/2023,0021038882/1,21038882, 678.00,Riverside Installations Ltd,01918600,,Initial Furniture & Equipment,Capital Renewals Leisure,P05KGBC0209906,210057430
http://statistics.data.gov.uk/id/local-authority/29UP,Tonbridge & Malling Borough Council,10/18/2023,0021038884/1,21038884, 20335.00,Arnold Tarmac Ltd,01685100,619126544,BRREP General Maintenance,Land Review,M15MAP10001900,210057418
http://statistics.data.gov.uk/id/local-authority/29UP,Tonbridge & Malling Borough Council,10/18/2023,0021038885/1,21038885, 132.50,SWS Countryside & Landscape,01567200,,Maintenance of Grounds,Open Spaces & Amenity Areas,B22LE000020402,210057266
http://statistics.data.gov.uk/id/local-authority/29UP,Tonbridge & Malling Borough Council,10/18/2023,0021038885/2,21038885, 132.50,SWS Countryside & Landscape,01567200,,Maintenance of Grounds,Open Spaces & Amenity Areas,B22LE000020402,210057266
http://statistics.data.gov.uk/id/local-authority/29UP,Tonbridge & Malling Borough Council,10/18/2023,0021038885/3,21038885, 30.00,SWS Countryside & Landscape,01567200,,Maintenance of Grounds,Open Spaces & Amenity Areas,B22LE000020402,210057266
http://statistics.data.gov.uk/id/local-authority/29UP,Tonbridge & Malling Borough Council,10/18/2023,0021038886/1,21038886, 2495.08,Technogym UK Ltd,00900000,,General,Larkfield Leisure Centre,B17GS000054012,210057340
http://statistics.data.gov.uk/id/local-authority/29UP,Tonbridge & Malling Borough Council,10/18/2023,0021038887/1,21038887, 4990.16,Technogym UK Ltd,00900000,,General,Larkfield Leisure Centre,B17GS000054012,210057340
http://statistics.data.gov.uk/id/local-authority/29UP,Tonbridge & Malling Borough Council,10/18/2023,0021038888/1,21038888, 11.50,South East Water Ltd,01330300,,Purchases,Haysden Country Park,B22LC000040101,210057369
http://statistics.data.gov.uk/id/local-authority/29UP,Tonbridge & Malling Borough Council,10/18/2023,0021038889/3,21038889, 35.59,B&Q/Screwfix Direct(TradeUKAccount),00141300,,Maintenance of Grounds,Haysden Country Park,B22LC000020402,
http://statistics.data.gov.uk/id/local-authority/29UP,Tonbridge & Malling Borough Council,10/18/2023,0021038890/1,21038890, 685.66,Atlas Facilities Managment Limited ,01075900,,Gates / Security,Patrolling,B22LF000044017,210057188
http://statistics.data.gov.uk/id/local-authority/29UP,Tonbridge & Malling Borough Council,10/18/2023,0021038891/1,21038891, 470.00,SWS Countryside & Landscape,01567200,,Health & Safety - Trees,Countryside/Woodland Mgt,B22LG000044045,210057284
http://statistics.data.gov.uk/id/local-authority/29UP,Tonbridge & Malling Borough Council,10/18/2023,0021038892/3,21038892, 250.00,SWS Countryside & Landscape,01567200,,Health & Safety - Trees,Countryside/Woodland Mgt,B22LG000044045,
http://statistics.data.gov.uk/id/local-authority/29UP,Tonbridge & Malling Borough Council,10/18/2023,0021038893/3,21038893, 225.00,SWS Countryside & Landscape,01567200,,Health & Safety - Trees,Countryside/Woodland Mgt,B22LG000044045,
http://statistics.data.gov.uk/id/local-authority/29UP,Tonbridge & Malling Borough Council,10/18/2023,0021038894/3,21038894, 2025.00,SWS Countryside & Landscape,01567200,,Health & Safety - Trees,Countryside/Woodland Mgt,B22LG000044045,
http://statistics.data.gov.uk/id/local-authority/29UP,Tonbridge & Malling Borough Council,10/18/2023,0021038895/1,21038895, 300.00,SWS Countryside & Landscape,01567200,,Health & Safety - Trees,Countryside/Woodland Mgt,B22LG000044045,210057308
http://statistics.data.gov.uk/id/local-authority/29UP,Tonbridge & Malling Borough Council,10/18/2023,0021038896/1,21038896, 450.00,SWS Countryside & Landscape,01567200,,Health & Safety - Trees,Countryside/Woodland Mgt,B22LG000044045,210057318
http://statistics.data.gov.uk/id/local-authority/29UP,Tonbridge & Malling Borough Council,10/18/2023,0021038897/3,21038897, 225.00,SWS Countryside & Landscape,01567200,,Health & Safety - Trees,Countryside/Woodland Mgt,B22LG000044045,
http://statistics.data.gov.uk/id/local-authority/29UP,Tonbridge & Malling Borough Council,10/18/2023,0021038898/1,21038898, 600.00,SWS Countryside & Landscape,01567200,,Health & Safety - Trees,Countryside/Woodland Mgt,B22LG000044045,210057194
http://statistics.data.gov.uk/id/local-authority/29UP,Tonbridge & Malling Borough Council,10/18/2023,0021038899/1,21038899, 1200.00,SWS Countryside & Landscape,01567200,,Health & Safety - Trees,Countryside/Woodland Mgt,B22LG000044045,210057288
http://statistics.data.gov.uk/id/local-authority/29UP,Tonbridge & Malling Borough Council,10/18/2023,0021038900/1,21038900, 730.00,SWS Countryside & Landscape,01567200,,Health & Safety - Trees,Countryside/Woodland Mgt,B22LG000044045,210057282
http://statistics.data.gov.uk/id/local-authority/29UP,Tonbridge & Malling Borough Council,10/18/2023,0021038900/2,21038900, 250.00,SWS Countryside & Landscape,01567200,,Health & Safety - Trees,Countryside/Woodland Mgt,B22LG000044045,210057282
http://statistics.data.gov.uk/id/local-authority/29UP,Tonbridge & Malling Borough Council,10/18/2023,0021038901/1,21038901, 173398.29,Tonbridge & Malling Leisure Trust,01469100,,General,T&M Leisure Trust,B10DA000054012,
http://statistics.data.gov.uk/id/local-authority/29UP,Tonbridge & Malling Borough Council,10/18/2023,0021038902/1,21038902, 100.00,SWS Countryside & Landscape,01567200,,Maintenance of Grounds,Open Spaces & Amenity Areas,B22LE000020402,210057193
http://statistics.data.gov.uk/id/local-authority/29UP,Tonbridge & Malling Borough Council,10/18/2023,0021038903/1,21038903, 300.00,SWS Countryside & Landscape,01567200,,Maintenance of Grounds,Open Spaces & Amenity Areas,B22LE000020402,210057267
http://statistics.data.gov.uk/id/local-authority/29UP,Tonbridge & Malling Borough Council,10/18/2023,0021038904/1,21038904, 3519.25,SWS Countryside & Landscape,01567200,,Maintenance of Grounds,Open Spaces & Amenity Areas,B22LE000020402,210057361
http://statistics.data.gov.uk/id/local-authority/29UP,Tonbridge & Malling Borough Council,10/18/2023,0021038905/1,21038905, 5863.40,SWS Countryside & Landscape,01567200,,Income,LLCP Facility Improv,P05FF000009907,
http://statistics.data.gov.uk/id/local-authority/29UP,Tonbridge & Malling Borough Council,10/18/2023,0021038906/1,21038906, 850.00,SWS Countryside & Landscape,01567200,,Health & Safety - Trees,Countryside/Woodland Mgt,B22LG000044045,210057373
http://statistics.data.gov.uk/id/local-authority/29UP,Tonbridge & Malling Borough Council,10/18/2023,0021038907/1,21038907, 314.62,The Spotted Penguin Co/Office Furn Direc,01918400,198165955,Initial Furniture & Equipment,Capital Renewals Leisure,P05KGBC0209906,210057425
http://statistics.data.gov.uk/id/local-authority/29UP,Tonbridge & Malling Borough Council,10/18/2023,0021038908/1,21038908, 5000.00,Rotary Club of Tonbridge (Christmas),01292700,,Events Support,Events Development,B41TJ000044041,
http://statistics.data.gov.uk/id/local-authority/29UP,Tonbridge & Malling Borough Council,10/18/2023,0021038909/1,21038909, 188.76,B&Q/Screwfix Direct(TradeUKAccount),00141300,,Maintenance of Grounds,Open Spaces & Amenity Areas,B22LE000020402,
http://statistics.data.gov.uk/id/local-authority/29UP,Tonbridge & Malling Borough Council,10/18/2023,0021038910/1,21038910, 1150.00,Cameron Electrical,01849600,,Maintenance of Play Equipment,Open Spaces & Amenity Areas,B22LE000020503,210057392
http://statistics.data.gov.uk/id/local-authority/29UP,Tonbridge & Malling Borough Council,10/18/2023,0021038912/1,21038912, 120.00,Flash Mobile Welding Services Ltd,01189200,,Maintenance of Grounds,Haysden Country Park,B22LCCARP20402,210057440
http://statistics.data.gov.uk/id/local-authority/29UP,Tonbridge & Malling Borough Council,10/18/2023,0022028174/3,22028174, 490.00,Countrystyle Group,00835900,781981681,Collection of Card,Dry Recycling,H34SR000054008,
http://statistics.data.gov.uk/id/local-authority/29UP,Tonbridge & Malling Borough Council,10/18/2023,0022028175/3,22028175, 957.50,Lucy and Martin Recycling LTD,01694200,,Vehicle Licences,Dry Recycling,H34SR000030105,
http://statistics.data.gov.uk/id/local-authority/29UP,Tonbridge & Malling Borough Council,10/18/2023,0022028176/3,22028176, 63.27,Biffa Waste Services Ltd,01284500,,Trade Refuse Charges,Cleaning & Security,D21FD000044008,
http://statistics.data.gov.uk/id/local-authority/29UP,Tonbridge & Malling Borough Council,10/18/2023,0022028177/3,22028177, 490.00,Countrystyle Group,00835900,781981681,Collection of Card,Dry Recycling,H34SR000054008,
http://statistics.data.gov.uk/id/local-authority/29UP,Tonbridge & Malling Borough Council,10/18/2023,0022028178/3,22028178, 724.68,Peoplesafe -  Skyguard Ltd,01779900,,Health General,Planning Sals&Overheads,D01AJ000044049,
http://statistics.data.gov.uk/id/local-authority/29UP,Tonbridge & Malling Borough Council,10/18/2023,0022028178/4,22028178, 65.88,Peoplesafe -  Skyguard Ltd,01779900,,Health General,Planning Sals&Overheads,D01AJDJ0244049,
http://statistics.data.gov.uk/id/local-authority/29UP,Tonbridge & Malling Borough Council,10/18/2023,0022028178/5,22028178, 329.40,Peoplesafe -  Skyguard Ltd,01779900,,Health General,Env Hlth & Hsg Sals&Overheads,D01AVDV0144049,
http://statistics.data.gov.uk/id/local-authority/29UP,Tonbridge & Malling Borough Council,10/18/2023,0022028178/6,22028178, 65.88,Peoplesafe -  Skyguard Ltd,01779900,,Health General,Env Hlth & Hsg Sals&Overheads,D01AVDV0344049,
http://statistics.data.gov.uk/id/local-authority/29UP,Tonbridge & Malling Borough Council,10/18/2023,0022028178/7,22028178, 131.76,Peoplesafe -  Skyguard Ltd,01779900,,Health General,Env Hlth & Hsg Sals&Overheads,D01AVDV0744049,
http://statistics.data.gov.uk/id/local-authority/29UP,Tonbridge & Malling Borough Council,10/18/2023,0022028178/8,22028178, 329.40,Peoplesafe -  Skyguard Ltd,01779900,,Health General,Env Hlth & Hsg Sals&Overheads,D01AVDV0944049,
http://statistics.data.gov.uk/id/local-authority/29UP,Tonbridge & Malling Borough Council,10/18/2023,0022028179/1,22028179, 451.17,Urbaser LTD,01718800,,Maintenance of Grounds,Sports Grounds,B13ET000020402,
http://statistics.data.gov.uk/id/local-authority/29UP,Tonbridge & Malling Borough Council,10/18/2023,0022028179/10,22028179, 214.52,Urbaser LTD,01718800,,Maintenance of Grounds,Parking Off-Street,E10HA000020402,
http://statistics.data.gov.uk/id/local-authority/29UP,Tonbridge & Malling Borough Council,10/18/2023,0022028179/11,22028179, 5458.43,Urbaser LTD,01718800,,Maintenance of Grounds,Parking Off-Street,E10HAE00120402,
http://statistics.data.gov.uk/id/local-authority/29UP,Tonbridge & Malling Borough Council,10/18/2023,0022028179/12,22028179, 587.98,Urbaser LTD,01718800,,Maintenance of Grounds,Parking Off-Street,E10HAE00220402,
http://statistics.data.gov.uk/id/local-authority/29UP,Tonbridge & Malling Borough Council,10/18/2023,0022028179/13,22028179, 367.83,Urbaser LTD,01718800,,Maintenance of Grounds,Parking Off-Street,E10HAE00320402,
http://statistics.data.gov.uk/id/local-authority/29UP,Tonbridge & Malling Borough Council,10/18/2023,0022028179/14,22028179, 1923.76,Urbaser LTD,01718800,,Maintenance of Grounds,Parking Off-Street,E10HAE00420402,
http://statistics.data.gov.uk/id/local-authority/29UP,Tonbridge & Malling Borough Council,10/18/2023,0022028179/15,22028179, 319.68,Urbaser LTD,01718800,,Maintenance of Grounds,Parking Off-Street,E10HAE00520402,
http://statistics.data.gov.uk/id/local-authority/29UP,Tonbridge & Malling Borough Council,10/18/2023,0022028179/16,22028179, 1192.31,Urbaser LTD,01718800,,Maintenance of Grounds,Parking Off-Street,E10HAE00620402,
http://statistics.data.gov.uk/id/local-authority/29UP,Tonbridge & Malling Borough Council,10/18/2023,0022028179/17,22028179, 10.05,Urbaser LTD,01718800,,Maintenance of Grounds,Parking Off-Street,E10HAE00820402,
http://statistics.data.gov.uk/id/local-authority/29UP,Tonbridge & Malling Borough Council,10/18/2023,0022028179/18,22028179, 9.92,Urbaser LTD,01718800,,Maintenance of Grounds,Parking Off-Street,E10HAE00920402,
http://statistics.data.gov.uk/id/local-authority/29UP,Tonbridge & Malling Borough Council,10/18/2023,0022028179/19,22028179, 23.56,Urbaser LTD,01718800,,Maintenance of Grounds,Parking Off-Street,E10HAE01020402,
http://statistics.data.gov.uk/id/local-authority/29UP,Tonbridge & Malling Borough Council,10/18/2023,0022028179/2,22028179, 96.02,Urbaser LTD,01718800,,Maintenance of Grounds,Poult Wood Golf Centre,B21KE000020402,
http://statistics.data.gov.uk/id/local-authority/29UP,Tonbridge & Malling Borough Council,10/18/2023,0022028179/20,22028179, 111.95,Urbaser LTD,01718800,,Maintenance of Grounds,Parking Off-Street,E10HAE01120402,
http://statistics.data.gov.uk/id/local-authority/29UP,Tonbridge & Malling Borough Council,10/18/2023,0022028179/21,22028179, 70.44,Urbaser LTD,01718800,,Maintenance of Grounds,Parking Off-Street,E10HAE01220402,
http://statistics.data.gov.uk/id/local-authority/29UP,Tonbridge & Malling Borough Council,10/18/2023,0022028179/22,22028179, 1335.68,Urbaser LTD,01718800,,Maintenance of Grounds,Parking Off-Street,E10HAE01320402,
http://statistics.data.gov.uk/id/local-authority/29UP,Tonbridge & Malling Borough Council,10/18/2023,0022028179/23,22028179, 101.58,Urbaser LTD,01718800,,Maintenance of Grounds,Parking Off-Street,E10HAE01420402,
http://statistics.data.gov.uk/id/local-authority/29UP,Tonbridge & Malling Borough Council,10/18/2023,0022028179/24,22028179, 313.05,Urbaser LTD,01718800,,Maintenance of Grounds,Parking Off-Street,E10HAE01520402,
http://statistics.data.gov.uk/id/local-authority/29UP,Tonbridge & Malling Borough Council,10/18/2023,0022028179/25,22028179, 336.69,Urbaser LTD,01718800,,Maintenance of Grounds,Parking Off-Street,E10HAE01620402,
http://statistics.data.gov.uk/id/local-authority/29UP,Tonbridge & Malling Borough Council,10/18/2023,0022028179/26,22028179, 993.96,Urbaser LTD,01718800,,Maintenance of Grounds,Parking Off-Street,E10HAE01720402,
http://statistics.data.gov.uk/id/local-authority/29UP,Tonbridge & Malling Borough Council,10/18/2023,0022028179/27,22028179, 285.29,Urbaser LTD,01718800,,Maintenance of Grounds,Parking Off-Street,E10HAE01920402,
http://statistics.data.gov.uk/id/local-authority/29UP,Tonbridge & Malling Borough Council,10/18/2023,0022028179/28,22028179, 626.69,Urbaser LTD,01718800,,Maintenance of Grounds,Parking Off-Street,E10HAE02020402,
http://statistics.data.gov.uk/id/local-authority/29UP,Tonbridge & Malling Borough Council,10/18/2023,0022028179/29,22028179, 21.76,Urbaser LTD,01718800,,Maintenance of Grounds,Parking Off-Street,E10HAE02120402,
http://statistics.data.gov.uk/id/local-authority/29UP,Tonbridge & Malling Borough Council,10/18/2023,0022028179/3,22028179, 39.62,Urbaser LTD,01718800,,Maintenance of Grounds,Haysden Country Park,B22LC000020402,
http://statistics.data.gov.uk/id/local-authority/29UP,Tonbridge & Malling Borough Council,10/18/2023,0022028179/30,22028179, 143.26,Urbaser LTD,01718800,,Maintenance of Grounds,Parking Off-Street,E10HAE02220402,
http://statistics.data.gov.uk/id/local-authority/29UP,Tonbridge & Malling Borough Council,10/18/2023,0022028179/31,22028179, 1204.31,Urbaser LTD,01718800,,Maintenance of Grounds,Parking Off-Street,E10HAE02320402,
http://statistics.data.gov.uk/id/local-authority/29UP,Tonbridge & Malling Borough Council,10/18/2023,0022028179/32,22028179, 3.11,Urbaser LTD,01718800,,Maintenance of Grounds,Parking Off-Street,E10HAE02720402,
http://statistics.data.gov.uk/id/local-authority/29UP,Tonbridge & Malling Borough Council,10/18/2023,0022028179/33,22028179, 437.60,Urbaser LTD,01718800,,Maintenance of Grounds,Parking Off-Street,E10HAE02820402,
http://statistics.data.gov.uk/id/local-authority/29UP,Tonbridge & Malling Borough Council,10/18/2023,0022028179/34,22028179, 7.88,Urbaser LTD,01718800,,Maintenance of Grounds,Parking Off-Street,E10HAE02920402,
http://statistics.data.gov.uk/id/local-authority/29UP,Tonbridge & Malling Borough Council,10/18/2023,0022028179/35,22028179, 46.38,Urbaser LTD,01718800,,Maintenance of Grounds,Parking Off-Street,E10HAE03020402,
http://statistics.data.gov.uk/id/local-authority/29UP,Tonbridge & Malling Borough Council,10/18/2023,0022028179/36,22028179, 39.46,Urbaser LTD,01718800,,Maintenance of Grounds,Parking Off-Street,E10HAE03120402,
http://statistics.data.gov.uk/id/local-authority/29UP,Tonbridge & Malling Borough Council,10/18/2023,0022028179/37,22028179, 836.71,Urbaser LTD,01718800,,Maintenance of Grounds,Parking Off-Street,E10HAE04020402,
http://statistics.data.gov.uk/id/local-authority/29UP,Tonbridge & Malling Borough Council,10/18/2023,0022028179/38,22028179, 580.32,Urbaser LTD,01718800,,Maintenance of Grounds,Parking Off-Street,E10HAE04220402,
http://statistics.data.gov.uk/id/local-authority/29UP,Tonbridge & Malling Borough Council,10/18/2023,0022028179/39,22028179, 1665.68,Urbaser LTD,01718800,,Maintenance of Grounds,Parking Off-Street,E10HAE04520402,
http://statistics.data.gov.uk/id/local-authority/29UP,Tonbridge & Malling Borough Council,10/18/2023,0022028179/4,22028179, 30.43,Urbaser LTD,01718800,,Dog Bin Emptying,Haysden Country Park,B22LC000044012,
http://statistics.data.gov.uk/id/local-authority/29UP,Tonbridge & Malling Borough Council,10/18/2023,0022028179/40,22028179, 107939.06,Urbaser LTD,01718800,,Contract Payments,Refuse Collection,H20SA000054001,
http://statistics.data.gov.uk/id/local-authority/29UP,Tonbridge & Malling Borough Council,10/18/2023,0022028179/41,22028179, 1101.97,Urbaser LTD,01718800,,Responsible Dog Ownership,Street Scene,H23SD000044050,
http://statistics.data.gov.uk/id/local-authority/29UP,Tonbridge & Malling Borough Council,10/18/2023,0022028179/42,22028179, 65916.68,Urbaser LTD,01718800,,Contract Payments,Street Scene,H23SD000054001,
http://statistics.data.gov.uk/id/local-authority/29UP,Tonbridge & Malling Borough Council,10/18/2023,0022028179/43,22028179, 414.98,Urbaser LTD,01718800,,General Maintenance,Dry Recycling,H34SR000020301,
http://statistics.data.gov.uk/id/local-authority/29UP,Tonbridge & Malling Borough Council,10/18/2023,0022028179/44,22028179, 98065.11,Urbaser LTD,01718800,,Contract Payments,Dry Recycling,H34SR000054001,
http://statistics.data.gov.uk/id/local-authority/29UP,Tonbridge & Malling Borough Council,10/18/2023,0022028179/45,22028179, 38371.84,Urbaser LTD,01718800,,Contract Payments,Food Recycling,H34SS000054001,
http://statistics.data.gov.uk/id/local-authority/29UP,Tonbridge & Malling Borough Council,10/18/2023,0022028179/46,22028179, 20834.10,Urbaser LTD,01718800,,Contract Payments,Garden Waste Recycling,H34ST000054001,
http://statistics.data.gov.uk/id/local-authority/29UP,Tonbridge & Malling Borough Council,10/18/2023,0022028179/5,22028179, 862.61,Urbaser LTD,01718800,,Maintenance of Grounds,Open Spaces & Amenity Areas,B22LE000020402,
http://statistics.data.gov.uk/id/local-authority/29UP,Tonbridge & Malling Borough Council,10/18/2023,0022028179/6,22028179, 16.22,Urbaser LTD,01718800,,Dog Bin Emptying,Open Spaces & Amenity Areas,B22LE000044012,
http://statistics.data.gov.uk/id/local-authority/29UP,Tonbridge & Malling Borough Council,10/18/2023,0022028179/7,22028179, 28.00,Urbaser LTD,01718800,,Maintenance of Grounds,Countryside/Woodland Mgt,B22LG000020402,
http://statistics.data.gov.uk/id/local-authority/29UP,Tonbridge & Malling Borough Council,10/18/2023,0022028179/8,22028179, 30.43,Urbaser LTD,01718800,,Dog Bin Emptying,Leybourne Lakes Country Park,B22LK000044012,
http://statistics.data.gov.uk/id/local-authority/29UP,Tonbridge & Malling Borough Council,10/18/2023,0022028179/9,22028179, 70.14,Urbaser LTD,01718800,,Maintenance of Grounds,Grounds,D21FF000020402,
http://statistics.data.gov.uk/id/local-authority/29UP,Tonbridge & Malling Borough Council,10/18/2023,0022028180/1,22028180, 180.00,Britains Limited,01743900,,Repairs & Mtce to Buildings,Homelessness,C01AA000020101,
http://statistics.data.gov.uk/id/local-authority/29UP,Tonbridge & Malling Borough Council,10/18/2023,0022028181/1,22028181, 330.00,Bella Fiori UK/Joseph Newell,01895600,,Healthy Living Initiatives,Public Health - Healthy Living,H40SYVH0048145,220003389
http://statistics.data.gov.uk/id/local-authority/29UP,Tonbridge & Malling Borough Council,10/18/2023,0031019759/1,31019759, 450.00,Arnold & Court Ltd,01411300,,Premises Repairs & Maintenance,Parking Off-Street,E10HA000020601,310043105
http://statistics.data.gov.uk/id/local-authority/29UP,Tonbridge & Malling Borough Council,10/18/2023,0031019760/1,31019760, 400.00,Arnold & Court Ltd,01411300,,Repair & Mtce of Fixed Plant,Boro Highways & Emergency Oper,E01AA000020501,310043093
http://statistics.data.gov.uk/id/local-authority/29UP,Tonbridge & Malling Borough Council,10/18/2023,0031019761/1,31019761, 550.00,Arnold & Court Ltd,01411300,,Premises Repairs & Maintenance,Parking Off-Street,E10HA000020601,310043113
http://statistics.data.gov.uk/id/local-authority/29UP,Tonbridge & Malling Borough Council,10/18/2023,0031019762/1,31019762, 200.00,Arnold & Court Ltd,01411300,,Premises Repairs & Maintenance,Parking Off-Street,E10HA000020601,310043119
http://statistics.data.gov.uk/id/local-authority/29UP,Tonbridge & Malling Borough Council,10/18/2023,0031019762/2,31019762, 100.00,Arnold & Court Ltd,01411300,,Premises Repairs & Maintenance,Parking Off-Street,E10HA000020601,310043119
http://statistics.data.gov.uk/id/local-authority/29UP,Tonbridge & Malling Borough Council,10/18/2023,0031019763/1,31019763, 200.00,Arnold & Court Ltd,01411300,,Premises Repairs & Maintenance,Parking Off-Street,E10HA000020601,310043117
http://statistics.data.gov.uk/id/local-authority/29UP,Tonbridge & Malling Borough Council,10/18/2023,0031019763/2,31019763, 400.00,Arnold & Court Ltd,01411300,,Premises Repairs & Maintenance,Parking Off-Street,E10HA000020601,310043117
http://statistics.data.gov.uk/id/local-authority/29UP,Tonbridge & Malling Borough Council,10/18/2023,0031019764/1,31019764, 275.00,Arnold & Court Ltd,01411300,,Maintenance of Grounds,Haysden Country Park,B22LCCARP20402,210057350
http://statistics.data.gov.uk/id/local-authority/29UP,Tonbridge & Malling Borough Council,10/18/2023,0031019765/1,31019765, 400.00,Arnold & Court Ltd,01411300,,Premises Repairs & Maintenance,Parking Off-Street,E10HA000020601,310043124
http://statistics.data.gov.uk/id/local-authority/29UP,Tonbridge & Malling Borough Council,10/18/2023,0031019765/2,31019765, 75.00,Arnold & Court Ltd,01411300,,Premises Repairs & Maintenance,Parking Off-Street,E10HA000020601,310043124
http://statistics.data.gov.uk/id/local-authority/29UP,Tonbridge & Malling Borough Council,10/18/2023,0031019768/3,31019768, 146.85,Imperial Civil Enforcement Solutions,00057200,,Adjudication & Enforcement Ser,Parking Off-Street,E10HA000044230,
http://statistics.data.gov.uk/id/local-authority/29UP,Tonbridge & Malling Borough Council,10/18/2023,0031019769/1,31019769, 900.59,DSSL Group Ltd,01839500,,CCTV Monitoring Station,Security Services Management,E09GA000051020,310043036
http://statistics.data.gov.uk/id/local-authority/29UP,Tonbridge & Malling Borough Council,10/18/2023,0031019769/2,31019769, 652.16,DSSL Group Ltd,01839500,,CCTV Monitoring Station,Security Services Management,E09GA000051020,310043036
http://statistics.data.gov.uk/id/local-authority/29UP,Tonbridge & Malling Borough Council,10/18/2023,0031019770/1,31019770, 319.75,SKF Contractors Ltd,00092000,621768141,Repair & Mtce of Fixed Plant,Boro Highways & Emergency Oper,E01AA000020501,310043145
http://statistics.data.gov.uk/id/local-authority/29UP,Tonbridge & Malling Borough Council,10/18/2023,0031019777/1,31019777, 238.95,Npower Ltd,01675800,,Electricity,Parking Off-Street,E10HA000021002,
http://statistics.data.gov.uk/id/local-authority/29UP,Tonbridge & Malling Borough Council,10/18/2023,0031019778/1,31019778, 81.59,Npower Ltd,01675800,,Electricity,Parking Off-Street,E10HA000021002,
http://statistics.data.gov.uk/id/local-authority/29UP,Tonbridge & Malling Borough Council,10/18/2023,0031019779/1,31019779, 53.33,Npower Ltd,01675800,,Electricity,Parking Off-Street,E10HA000021002,
http://statistics.data.gov.uk/id/local-authority/29UP,Tonbridge & Malling Borough Council,10/18/2023,0032010499/3,32010499, 2060.25,Hays Specialist Recruitment Limited,01879200,773695871,Temporary Staff,Planning Sals&Overheads,D01AJDJ0111300,
http://statistics.data.gov.uk/id/local-authority/29UP,Tonbridge & Malling Borough Council,10/18/2023,0032010500/3,32010500, 1695.21,The Oyster Partnership,01196400,,Temporary Staff,Planning Sals&Overheads,D01AJDJ0111300,
http://statistics.data.gov.uk/id/local-authority/29UP,Tonbridge & Malling Borough Council,10/18/2023,0032010501/3,32010501, 1638.00,The Oyster Partnership,01196400,,Temporary Staff,Planning Sals&Overheads,D01AJDJ0111300,
http://statistics.data.gov.uk/id/local-authority/29UP,Tonbridge & Malling Borough Council,10/18/2023,0032010503/1,32010503, 1000.00,Dartford Borough Council,00026000,,Development of Local Plan,Development of Local Plan,A01AE000044023,320003560
http://statistics.data.gov.uk/id/local-authority/29UP,Tonbridge & Malling Borough Council,10/18/2023,0032010504/1,32010504, 29000.00,East Malling & Larkfield Parish Council,00030200,,Payments,S106 - Commuted Sums,M04AD000001001,
http://statistics.data.gov.uk/id/local-authority/29UP,Tonbridge & Malling Borough Council,10/18/2023,0032010505/1,32010505, 5235.19,Kent County Council,00322500,,Development of Local Plan,Development of Local Plan,A01AE000044023,320003522
http://statistics.data.gov.uk/id/local-authority/29UP,Tonbridge & Malling Borough Council,10/18/2023,0032010506/1,32010506, 1175.00,Carrington West Limited,01844500,,Temporary Staff,Planning Sals&Overheads,D01AJDJ0111300,
http://statistics.data.gov.uk/id/local-authority/29UP,Tonbridge & Malling Borough Council,10/18/2023,0032010507/1,32010507, 1504.00,Carrington West Limited,01844500,,Temporary Staff,Planning Sals&Overheads,D01AJDJ0111300,
http://statistics.data.gov.uk/id/local-authority/29UP,Tonbridge & Malling Borough Council,10/18/2023,0032010508/1,32010508, 1656.00,Carrington West Limited,01844500,,Temporary Staff,Planning Sals&Overheads,D01AJDJ0111300,
http://statistics.data.gov.uk/id/local-authority/29UP,Tonbridge & Malling Borough Council,10/18/2023,0032010509/1,32010509, 5872.41,G2 Recruitment Solutions,01786000,,Temporary Staff,Planning Sals&Overheads,D01AJDJ0011300,
http://statistics.data.gov.uk/id/local-authority/29UP,Tonbridge & Malling Borough Council,10/18/2023,0032010511/1,32010511, 1224.00,Hays Specialist Recruitment Limited,01879200,773695871,Temporary Staff,Planning Sals&Overheads,D01AJDJ0111300,
http://statistics.data.gov.uk/id/local-authority/29UP,Tonbridge & Malling Borough Council,10/18/2023,0032010512/1,32010512, 2043.50,Hays Specialist Recruitment Limited,01879200,773695871,Temporary Staff,Planning Sals&Overheads,D01AJDJ0111300,
http://statistics.data.gov.uk/id/local-authority/29UP,Tonbridge & Malling Borough Council,10/18/2023,0032010513/1,32010513, 1903.99,Kent County Council,00322500,,Economic Development & Regen,Eco Dev & Reg Gen Bus Support,D52TD000047027,
http://statistics.data.gov.uk/id/local-authority/29UP,Tonbridge & Malling Borough Council,10/18/2023,0041035967/1,41035967, 1802.00,Greenhalgh Kerr,01590200,,Bailiffs Commission,Local Revenue & NNDR Collect,D41QA000044075,
http://statistics.data.gov.uk/id/local-authority/29UP,Tonbridge & Malling Borough Council,10/18/2023,0041035967/2,41035967, 125.00,Greenhalgh Kerr,01590200,,Bailiffs Commission,Local Revenue & NNDR Collect,D41QA000044075,
http://statistics.data.gov.uk/id/local-authority/29UP,Tonbridge & Malling Borough Council,10/18/2023,0041035967/3,41035967, 95.00,Greenhalgh Kerr,01590200,,Bailiffs Commission,Local Revenue & NNDR Collect,D41QA000044075,
http://statistics.data.gov.uk/id/local-authority/29UP,Tonbridge & Malling Borough Council,10/18/2023,0041035967/4,41035967, 10.00,Greenhalgh Kerr,01590200,,Bailiffs Commission,Local Revenue & NNDR Collect,D41QA000044075,
http://statistics.data.gov.uk/id/local-authority/29UP,Tonbridge & Malling Borough Council,10/18/2023,0041035968/1,41035968, 2902.00,Greenhalgh Kerr,01590200,,Bailiffs Commission,Local Revenue & NNDR Collect,D41QA000044075,
http://statistics.data.gov.uk/id/local-authority/29UP,Tonbridge & Malling Borough Council,10/18/2023,0041035968/2,41035968, 7.96,Greenhalgh Kerr,01590200,,Bailiffs Commission,Local Revenue & NNDR Collect,D41QA000044075,
http://statistics.data.gov.uk/id/local-authority/29UP,Tonbridge & Malling Borough Council,10/18/2023,0041035968/3,41035968, 79.60,Greenhalgh Kerr,01590200,,Bailiffs Commission,Local Revenue & NNDR Collect,D41QA000044075,
http://statistics.data.gov.uk/id/local-authority/29UP,Tonbridge & Malling Borough Council,10/18/2023,0041035968/4,41035968, 107.00,Greenhalgh Kerr,01590200,,Bailiffs Commission,Local Revenue & NNDR Collect,D41QA000044075,
http://statistics.data.gov.uk/id/local-authority/29UP,Tonbridge & Malling Borough Council,10/18/2023,0041035968/5,41035968, 85.00,Greenhalgh Kerr,01590200,,Bailiffs Commission,Local Revenue & NNDR Collect,D41QA000044075,
http://statistics.data.gov.uk/id/local-authority/29UP,Tonbridge & Malling Borough Council,10/18/2023,0041035969/1,41035969, 2397.21,Rundle & Co Ltd,00087200,,Bailiffs Commission,Local Revenue & NNDR Collect,D41QA000044075,
http://statistics.data.gov.uk/id/local-authority/29UP,Tonbridge & Malling Borough Council,10/18/2023,0041035970/1,41035970, 21.14,Amazon EU SARL,01738400,,Stationery,Finance Sals&Overheads,D01AF000043003,410032491
http://statistics.data.gov.uk/id/local-authority/29UP,Tonbridge & Malling Borough Council,10/18/2023,0041035971/1,41035971, 1.04,Amazon EU SARL,01738400,,Purchases,Finance Sals&Overheads,D01AF000040101,410032491
http://statistics.data.gov.uk/id/local-authority/29UP,Tonbridge & Malling Borough Council,10/18/2023,0041035971/2,41035971, 2.82,Amazon EU SARL,01738400,,Stationery,Finance Sals&Overheads,D01AF000043003,410032491
http://statistics.data.gov.uk/id/local-authority/29UP,Tonbridge & Malling Borough Council,10/18/2023,0041035974/3,41035974, 1162.59,Morgan Hunt UK Ltd,01086900,,Temporary Staff,Finance Sals&Overheads,D01AFDF1111300,
http://statistics.data.gov.uk/id/local-authority/29UP,Tonbridge & Malling Borough Council,10/18/2023,0041035984/1,41035984, 3613.29,Maidstone Borough Council,01173700,,Bailiffs Commission,Local Revenue & NNDR Collect,D41QA000044075,
http://statistics.data.gov.uk/id/local-authority/29UP,Tonbridge & Malling Borough Council,10/18/2023,0041035985/1,41035985, 687.37,Maidstone Borough Council,01173700,,Bailiffs Commission,Local Revenue & NNDR Collect,D41QA000044075,
http://statistics.data.gov.uk/id/local-authority/29UP,Tonbridge & Malling Borough Council,10/19/2023,0041035994/1,41035994, 69.44,Allpay Limited,01816500,,Giro / Swipe Card Charges,Local Revenue & NNDR Collect,D41QA000044083,
http://statistics.data.gov.uk/id/local-authority/29UP,Tonbridge & Malling Borough Council,10/19/2023,0041035995/1,41035995, 218.30,National Westminster Bank Plc,00069400,,Bank Charges,Banking Arrangements,D43QK000044222,
http://statistics.data.gov.uk/id/local-authority/29UP,Tonbridge & Malling Borough Council,10/20/2023,0041035999/1,41035999, 2581.00,H.M. Revenue & Customs,00048400,,Levy Payment,Apprenticeship Scheme,D10DE000013700,
http://statistics.data.gov.uk/id/local-authority/29UP,Tonbridge & Malling Borough Council,10/20/2023,0041035999/2,41035999, 1.00,H.M. Revenue & Customs,00048400,,Levy Payment,Apprenticeship Scheme,D10DE000013700,
http://statistics.data.gov.uk/id/local-authority/29UP,Tonbridge & Malling Borough Council,10/25/2023,0011047094/1,11047094, 12500.00,Sevenoaks District Council,00089300,,Initiatives,UK Shared Prosperity Fund,D52TH000048135,110070200
http://statistics.data.gov.uk/id/local-authority/29UP,Tonbridge & Malling Borough Council,10/25/2023,0011047095/1,11047095, 12500.00,Sevenoaks District Council,00089300,,Initiatives,UK Shared Prosperity Fund,D52TH000048135,110070200
http://statistics.data.gov.uk/id/local-authority/29UP,Tonbridge & Malling Borough Council,10/25/2023,0011047096/1,11047096, 3.90,KCS Education/CSG Global Education Ltd,01897200,408845925,Cleaning & Domestic Supplies,Cleaning & Security,D21FD000026001,110070520
http://statistics.data.gov.uk/id/local-authority/29UP,Tonbridge & Malling Borough Council,10/25/2023,0011047096/2,11047096, 395.88,KCS Education/CSG Global Education Ltd,01897200,408845925,Cleaning & Domestic Supplies,Cleaning & Security,D21FD000026001,110070520
http://statistics.data.gov.uk/id/local-authority/29UP,Tonbridge & Malling Borough Council,10/25/2023,0011047096/3,11047096, 17.90,KCS Education/CSG Global Education Ltd,01897200,408845925,Cleaning & Domestic Supplies,Cleaning & Security,D21FD000026001,110070520
http://statistics.data.gov.uk/id/local-authority/29UP,Tonbridge & Malling Borough Council,10/25/2023,0011047096/4,11047096, 41.70,KCS Education/CSG Global Education Ltd,01897200,408845925,Cleaning & Domestic Supplies,Cleaning & Security,D21FD000026001,110070520
http://statistics.data.gov.uk/id/local-authority/29UP,Tonbridge & Malling Borough Council,10/25/2023,0011047096/5,11047096, 38.35,KCS Education/CSG Global Education Ltd,01897200,408845925,Cleaning & Domestic Supplies,Cleaning & Security,D21FD000026001,110070520
http://statistics.data.gov.uk/id/local-authority/29UP,Tonbridge & Malling Borough Council,10/25/2023,0011047096/6,11047096, 75.98,KCS Education/CSG Global Education Ltd,01897200,408845925,Cleaning & Domestic Supplies,Cleaning & Security,D21FD000026001,110070520
http://statistics.data.gov.uk/id/local-authority/29UP,Tonbridge & Malling Borough Council,10/25/2023,0011047096/7,11047096, 17.90,KCS Education/CSG Global Education Ltd,01897200,408845925,Cleaning & Domestic Supplies,Cleaning & Security,D21FD000026001,110070520
http://statistics.data.gov.uk/id/local-authority/29UP,Tonbridge & Malling Borough Council,10/25/2023,0011047097/3,11047097, 230.99,KH Recruitment Ltd,01738900,,Temporary Staff,Personnel Sals&Overheads,D01ABDB0311300,
http://statistics.data.gov.uk/id/local-authority/29UP,Tonbridge & Malling Borough Council,10/25/2023,0011047097/4,11047097, 589.41,KH Recruitment Ltd,01738900,,Temporary Staff,Personnel Sals&Overheads,D01ABDB0311300,
http://statistics.data.gov.uk/id/local-authority/29UP,Tonbridge & Malling Borough Council,10/25/2023,0011047098/3,11047098, 1275.69,Kent County Council,00322500,,Kent Highways,Local Land Charges,D35NK000044240,
http://statistics.data.gov.uk/id/local-authority/29UP,Tonbridge & Malling Borough Council,10/25/2023,0011047099/3,11047099, 1482.30,TMS Protection Ltd,01744300,,Office Security,Ton Castle Council Chamber,D21FC000044047,
http://statistics.data.gov.uk/id/local-authority/29UP,Tonbridge & Malling Borough Council,10/25/2023,0011047099/4,11047099, 3321.00,TMS Protection Ltd,01744300,,Office Security,Tonbridge Gateway,D23TG000044047,
http://statistics.data.gov.uk/id/local-authority/29UP,Tonbridge & Malling Borough Council,10/25/2023,0011047100/3,11047100, 1334.98,KCS - KCC,00054200,,Gas,Buildings,D21FEDD1021003,
http://statistics.data.gov.uk/id/local-authority/29UP,Tonbridge & Malling Borough Council,10/25/2023,0011047101/3,11047101, 15691.31,Royal Mail,00086200,,Purchases,Mailsort Stock Account,K37BR000001002,
http://statistics.data.gov.uk/id/local-authority/29UP,Tonbridge & Malling Borough Council,10/25/2023,0011047101/4,11047101, 15.30,Royal Mail,00086200,,Purchases,Mailsort Stock Account,K37BR000001002,
http://statistics.data.gov.uk/id/local-authority/29UP,Tonbridge & Malling Borough Council,10/25/2023,0011047101/5,11047101, 4.20,Royal Mail,00086200,,Purchases,Mailsort Stock Account,K37BR000001002,
http://statistics.data.gov.uk/id/local-authority/29UP,Tonbridge & Malling Borough Council,10/25/2023,0011047102/3,11047102, 64.62,Royal Mail,00086200,,Postages - Business Reply,Electoral Registration,D31MF000045003,
http://statistics.data.gov.uk/id/local-authority/29UP,Tonbridge & Malling Borough Council,10/25/2023,0011047102/4,11047102, 16.00,Royal Mail,00086200,,Purchases,Business Reply Stock Account,K14AT000001002,
http://statistics.data.gov.uk/id/local-authority/29UP,Tonbridge & Malling Borough Council,10/25/2023,0011047103/3,11047103, 80.82,Royal Mail,00086200,,Postages - Business Reply,Electoral Registration,D31MF000045003,
http://statistics.data.gov.uk/id/local-authority/29UP,Tonbridge & Malling Borough Council,10/25/2023,0011047103/4,11047103, 20.00,Royal Mail,00086200,,Purchases,Business Reply Stock Account,K14AT000001002,
http://statistics.data.gov.uk/id/local-authority/29UP,Tonbridge & Malling Borough Council,10/25/2023,0011047104/3,11047104, 366.30,KCS - KCC,00054200,,Gas,Buildings,D21FEDD1021003,
http://statistics.data.gov.uk/id/local-authority/29UP,Tonbridge & Malling Borough Council,10/25/2023,0011047105/3,11047105, 237.07,Initial Washroom Hygiene,00048300,,Laundry - Roller Towels,Cleaning & Security,D21FD000042003,
http://statistics.data.gov.uk/id/local-authority/29UP,Tonbridge & Malling Borough Council,10/25/2023,0011047106/3,11047106, 696.41,KCS - KCC,00054200,,Gas,Buildings,D21FEDD6021003,
http://statistics.data.gov.uk/id/local-authority/29UP,Tonbridge & Malling Borough Council,10/25/2023,0011047107/3,11047107, 97.42,Atlas Facilities Managment Limited ,01075900,,Miscellaneous Services,Cleaning & Security,D21FDDD6044015,
http://statistics.data.gov.uk/id/local-authority/29UP,Tonbridge & Malling Borough Council,10/25/2023,0011047108/3,11047108, 48.71,Atlas Facilities Managment Limited ,01075900,,Miscellaneous Services,Cleaning & Security,D21FDDD5044015,
http://statistics.data.gov.uk/id/local-authority/29UP,Tonbridge & Malling Borough Council,10/25/2023,0011047109/1,11047109, 3597.72,Retroelectric Ltd,01831000,,Contract Payments,UK Shared Prosperity Fund,P06FNFN6009904,
http://statistics.data.gov.uk/id/local-authority/29UP,Tonbridge & Malling Borough Council,10/25/2023,0011047110/3,11047110, 450.00,Sellick Partnership Group Limited,01336800,,Temporary Staff,Legal Sals&Overheads,D01ARDR0011300,
http://statistics.data.gov.uk/id/local-authority/29UP,Tonbridge & Malling Borough Council,10/25/2023,0011047111/3,11047111, 1625.00,Vivid Resourcing,01773700,,Temporary Staff,Legal Sals&Overheads,D01ARDR0011300,
http://statistics.data.gov.uk/id/local-authority/29UP,Tonbridge & Malling Borough Council,10/25/2023,0011047115/1,11047115, 382.24,TimeLine Gifts Ltd,00650200,,Purchases,TIC Stock Account,K18AX000001002,
http://statistics.data.gov.uk/id/local-authority/29UP,Tonbridge & Malling Borough Council,10/25/2023,0011047116/1,11047116, 2997.00,TMS Protection Ltd,01744300,,Temporary Staff,Admin & Prop Sals&Overheads,D01AADA0511300,
http://statistics.data.gov.uk/id/local-authority/29UP,Tonbridge & Malling Borough Council,10/25/2023,0011047117/1,11047117, 342.00,TMS Protection Ltd,01744300,,BRREP Servicing - FireAlarmSys,Larkfield Leisure Centre,M15HDP20001937,
http://statistics.data.gov.uk/id/local-authority/29UP,Tonbridge & Malling Borough Council,10/25/2023,0011047118/1,11047118, 1733.40,TMS Protection Ltd,01744300,,Temporary Staff,Admin & Prop Sals&Overheads,D01AADA0511300,
http://statistics.data.gov.uk/id/local-authority/29UP,Tonbridge & Malling Borough Council,10/25/2023,0011047119/1,11047119, 179.27,KCS - KCC,00054200,,Estate Management Charge,Land Review,D40PS000020400,
http://statistics.data.gov.uk/id/local-authority/29UP,Tonbridge & Malling Borough Council,10/25/2023,0011047120/1,11047120, 97.44,Biffa Waste Services Ltd,01284500,,Trade Refuse Charges,Cleaning & Security,D21FD000044008,
http://statistics.data.gov.uk/id/local-authority/29UP,Tonbridge & Malling Borough Council,10/25/2023,0011047121/1,11047121, 87.85,Biffa Waste Services Ltd,01284500,,Trade Refuse Charges,Cleaning & Security,D21FD000044008,
http://statistics.data.gov.uk/id/local-authority/29UP,Tonbridge & Malling Borough Council,10/25/2023,0011047122/1,11047122, 140.56,Biffa Waste Services Ltd,01284500,,Trade Refuse Charges,Cleaning & Security,D21FD000044008,
http://statistics.data.gov.uk/id/local-authority/29UP,Tonbridge & Malling Borough Council,10/25/2023,0011047124/1,11047124, 350.00,BML Building Services Ltd,01505000,,BRREP Response - General,Larkfield Leisure Centre,M15HDP50001997,
http://statistics.data.gov.uk/id/local-authority/29UP,Tonbridge & Malling Borough Council,10/25/2023,0011047125/1,11047125, 312.43,KCS - KCC,00054200,,Estate Management Charge,Land Review,D40PS000020400,
http://statistics.data.gov.uk/id/local-authority/29UP,Tonbridge & Malling Borough Council,10/25/2023,0011047126/1,11047126, 1063.52,KCS - KCC,00054200,,Electricity,Buildings,D21FEDD6021002,
http://statistics.data.gov.uk/id/local-authority/29UP,Tonbridge & Malling Borough Council,10/25/2023,0011047127/1,11047127, 200.28,KCS - KCC,00054200,,Electricity,Buildings,D21FEDD5021002,
http://statistics.data.gov.uk/id/local-authority/29UP,Tonbridge & Malling Borough Council,10/25/2023,0011047128/1,11047128, 1383.41,KCS - KCC,00054200,,Electricity,Buildings,D21FEDD1021002,
http://statistics.data.gov.uk/id/local-authority/29UP,Tonbridge & Malling Borough Council,10/25/2023,0011047129/1,11047129, 588.47,KCS - KCC,00054200,,Estate Management Charge,Land Review,D40PS000020400,
http://statistics.data.gov.uk/id/local-authority/29UP,Tonbridge & Malling Borough Council,10/25/2023,0011047130/1,11047130, 1979.65,Royal Mail,00086200,,Purchases,Mailsort Stock Account,K37BR000001002,
http://statistics.data.gov.uk/id/local-authority/29UP,Tonbridge & Malling Borough Council,10/25/2023,0011047130/2,11047130, 8.01,Royal Mail,00086200,,Purchases,Mailsort Stock Account,K37BR000001002,
http://statistics.data.gov.uk/id/local-authority/29UP,Tonbridge & Malling Borough Council,10/25/2023,0011047130/3,11047130, 2.10,Royal Mail,00086200,,Purchases,Mailsort Stock Account,K37BR000001002,
http://statistics.data.gov.uk/id/local-authority/29UP,Tonbridge & Malling Borough Council,10/25/2023,0011047131/1,11047131, 59.30,Royal Mail,00086200,,Postages - Business Reply,Electoral Registration,D31MF000045003,
http://statistics.data.gov.uk/id/local-authority/29UP,Tonbridge & Malling Borough Council,10/25/2023,0011047131/2,11047131, 10.00,Royal Mail,00086200,,Purchases,Business Reply Stock Account,K14AT000001002,
http://statistics.data.gov.uk/id/local-authority/29UP,Tonbridge & Malling Borough Council,10/25/2023,0011047132/1,11047132, 61.31,EDF- Accounts starting with A,01921000,,Estate Management Charge,Land Review,D40PS000020400,
http://statistics.data.gov.uk/id/local-authority/29UP,Tonbridge & Malling Borough Council,10/25/2023,0011047133/1,11047133, 511.61,Thomas Fattorini Ltd,00101500,,Other Expenses,Mayoral & Other Member Support,D29LX000048010,
http://statistics.data.gov.uk/id/local-authority/29UP,Tonbridge & Malling Borough Council,10/25/2023,0011047135/1,11047135, 150.00,Spy Alarms Ltd,01608800,,BRREP Servicing-IntruderAlarm,Leybourne Lakes Country Park,M15HLP20001939,
http://statistics.data.gov.uk/id/local-authority/29UP,Tonbridge & Malling Borough Council,10/25/2023,0011047136/1,11047136, 412.58,NLC Nova Lift Company Ltd,01735600,,BRREP Servicing - lifts,Leis Man Poult Wood Golf Centr,M15HEP20001930,110070585
http://statistics.data.gov.uk/id/local-authority/29UP,Tonbridge & Malling Borough Council,10/25/2023,0011047137/1,11047137, 824.99,Broadwater Technologies,01534500,,BRREP Plant renewals,Tonbridge Swimming Pool,M15HBP20001909,110070530
http://statistics.data.gov.uk/id/local-authority/29UP,Tonbridge & Malling Borough Council,10/25/2023,0011047138/1,11047138, 315.88,Topline  Electronics Ltd Pools and Welln,01864600,,BRREP Plant renewals,Tonbridge Swimming Pool,M15HBP20001909,110069949
http://statistics.data.gov.uk/id/local-authority/29UP,Tonbridge & Malling Borough Council,10/25/2023,0011047139/1,11047139, 1481.72,Chubb Fire & Security Ltd,00115400,174605362,BRREP Servicing-IntruderAlarm,Tonbridge Castle / CAB,M15KFP20001939,110070574
http://statistics.data.gov.uk/id/local-authority/29UP,Tonbridge & Malling Borough Council,10/25/2023,0011047140/1,11047140, 268.12,NLC Nova Lift Company Ltd,01735600,,BRREP Servicing - lifts,Leis Man Poult Wood Golf Centr,M15HEP20001930,110070584
http://statistics.data.gov.uk/id/local-authority/29UP,Tonbridge & Malling Borough Council,10/25/2023,0011047141/1,11047141, 280.00,G C Industrial Heating Services,00578100,,BRREP Response - General,Larkfield Leisure Centre,M15HDP50001997,110070524
http://statistics.data.gov.uk/id/local-authority/29UP,Tonbridge & Malling Borough Council,10/25/2023,0011047142/1,11047142, 120.00,G C Industrial Heating Services,00578100,,BRREP Response - General,Larkfield Leisure Centre,M15HDP50001997,110070525
http://statistics.data.gov.uk/id/local-authority/29UP,Tonbridge & Malling Borough Council,10/25/2023,0011047143/1,11047143, 550.00,G C Industrial Heating Services,00578100,,BRREP Servicing - Sadia Tea,Tonbridge Castle / CAB,M15KFP20001932,110070523
http://statistics.data.gov.uk/id/local-authority/29UP,Tonbridge & Malling Borough Council,10/25/2023,0011047144/1,11047144, 3100.00,G C Industrial Heating Services,00578100,,BRREP Servicing - Heating Syst,Larkfield Leisure Centre,M15HDP20001934,110070534
http://statistics.data.gov.uk/id/local-authority/29UP,Tonbridge & Malling Borough Council,10/25/2023,0011047145/1,11047145, 194.05,NKM Fire Protection Ltd,01784600,,BRREP Servicing - FireAlarmSys,Tonbridge Swimming Pool,M15HBP20001937,110070319
http://statistics.data.gov.uk/id/local-authority/29UP,Tonbridge & Malling Borough Council,10/25/2023,0011047146/1,11047146, 450.00,BML Building Services Ltd,01505000,,BRREP Response - General,PC - General,M15JAP50001997,110070543
http://statistics.data.gov.uk/id/local-authority/29UP,Tonbridge & Malling Borough Council,10/25/2023,0011047147/1,11047147, 280.00,G C Industrial Heating Services,00578100,,BRREP Response - General,Pleasure Grounds & Open Spaces,M15HHP50001997,110070522
http://statistics.data.gov.uk/id/local-authority/29UP,Tonbridge & Malling Borough Council,10/25/2023,0011047148/1,11047148, 380.00,Spy Alarms Ltd,01608800,,BRREP Servicing-IntruderAlarm,Leybourne Lakes Country Park,M15HLP20001939,110070459
http://statistics.data.gov.uk/id/local-authority/29UP,Tonbridge & Malling Borough Council,10/25/2023,0011047149/1,11047149, 1089.00,Learnd UK,01226700,,BRREP BMS System Mntce/Upgrade,Tonbridge Swimming Pool,M15HBP20001912,110069930
http://statistics.data.gov.uk/id/local-authority/29UP,Tonbridge & Malling Borough Council,10/25/2023,0011047150/1,11047150, 850.00,G C Industrial Heating Services,00578100,,BRREP Servicing-water chillers,Gibson Building West,M15KBP20001933,110070573
http://statistics.data.gov.uk/id/local-authority/29UP,Tonbridge & Malling Borough Council,10/25/2023,0011047151/1,11047151, 980.00,G C Industrial Heating Services,00578100,,BRREP Response - General,Leybourne Lakes Country Park,M15HLP50001997,110070578
http://statistics.data.gov.uk/id/local-authority/29UP,Tonbridge & Malling Borough Council,10/25/2023,0011047152/1,11047152, 740.00,G C Industrial Heating Services,00578100,,BRREP Servicing-water chillers,Tonbridge Castle / CAB,M15KFP20001933,110070572
http://statistics.data.gov.uk/id/local-authority/29UP,Tonbridge & Malling Borough Council,10/25/2023,0011047153/1,11047153, 240.00,G C Industrial Heating Services,00578100,,BRREP Response - General,Larkfield Leisure Centre,M15HDP50001997,110070526
http://statistics.data.gov.uk/id/local-authority/29UP,Tonbridge & Malling Borough Council,10/25/2023,0011047154/1,11047154, 643.00,Broadwater Technologies,01534500,,BRREP Plant renewals,Larkfield Leisure Centre,M15HDP20001909,110070519
http://statistics.data.gov.uk/id/local-authority/29UP,Tonbridge & Malling Borough Council,10/25/2023,0011047155/1,11047155, 100.00,BML Building Services Ltd,01505000,,BRREP Resp - Vandal / Break-In,PC - General,M15JAP50001998,110070555
http://statistics.data.gov.uk/id/local-authority/29UP,Tonbridge & Malling Borough Council,10/25/2023,0011047156/1,11047156, 250.00,BML Building Services Ltd,01505000,,BRREP Resp - Vandal / Break-In,PC - General,M15JAP50001998,110070552
http://statistics.data.gov.uk/id/local-authority/29UP,Tonbridge & Malling Borough Council,10/25/2023,0011047157/1,11047157, 350.00,BML Building Services Ltd,01505000,,BRREP Window/door repairs,Larkfield Leisure Centre,M15HDP20001919,110070511
http://statistics.data.gov.uk/id/local-authority/29UP,Tonbridge & Malling Borough Council,10/25/2023,0011047158/1,11047158, 695.00,GreenFish Consulting part of JCML Consul,01627700,,BRREP General Maintenance,Tonbridge Swimming Pool,M15HBP10001900,110070466
http://statistics.data.gov.uk/id/local-authority/29UP,Tonbridge & Malling Borough Council,10/25/2023,0011047158/2,11047158, 550.00,GreenFish Consulting part of JCML Consul,01627700,,BRREP General Maintenance,Leis Man Poult Wood Golf Centr,M15HEP10001900,110070466
http://statistics.data.gov.uk/id/local-authority/29UP,Tonbridge & Malling Borough Council,10/25/2023,0011047159/1,11047159, 225.00,GreenFish Consulting part of JCML Consul,01627700,,BRREP Energy Efficiency Regs,Shops & Maisonettes,M15NAP30001976,110070531
http://statistics.data.gov.uk/id/local-authority/29UP,Tonbridge & Malling Borough Council,10/25/2023,0011047160/1,11047160, 780.00,DORMA UK Ltd,00413500,549361128,BRREP Servicing-entrance doors,Gibson Building West,M15KBP20001927,110070580
http://statistics.data.gov.uk/id/local-authority/29UP,Tonbridge & Malling Borough Council,10/25/2023,0011047161/1,11047161, 2000.00,BML Building Services Ltd,01505000,,BRREP Window/door repairs,Larkfield Leisure Centre,M15HDP20001919,110070583
http://statistics.data.gov.uk/id/local-authority/29UP,Tonbridge & Malling Borough Council,10/25/2023,0011047162/1,11047162, 1645.00,TMD Services,01719600,,BRREP Slipstream flume ovrhaul,Larkfield Leisure Centre,M15HDP20001954,110070540
http://statistics.data.gov.uk/id/local-authority/29UP,Tonbridge & Malling Borough Council,10/25/2023,0011047163/1,11047163, 1645.00,TMD Services,01719600,,BRREP Slipstream flume ovrhaul,Larkfield Leisure Centre,M15HDP20001954,110070563
http://statistics.data.gov.uk/id/local-authority/29UP,Tonbridge & Malling Borough Council,10/25/2023,0011047164/1,11047164, 300.00,BML Building Services Ltd,01505000,,BRREP Drain and gully cleaning,PC - General,M15JAP20001975,
http://statistics.data.gov.uk/id/local-authority/29UP,Tonbridge & Malling Borough Council,10/25/2023,0012008871/1,12008871, 255.80,Bytes Software Services,01676900,823818226,Software Hire & Support,Information Technology,D27KD000044059,410032498
http://statistics.data.gov.uk/id/local-authority/29UP,Tonbridge & Malling Borough Council,10/25/2023,0012008872/3,12008872, 15846.73,Phoenix Software Ltd,00077400,755349015,Software Hire & Support,Information Technology,D27KD000044059,
http://statistics.data.gov.uk/id/local-authority/29UP,Tonbridge & Malling Borough Council,10/25/2023,0012008873/1,12008873, 19.00,BEHRENS Group,01909400,,Purchases,Information Technology,D27KD000040101,410032448
http://statistics.data.gov.uk/id/local-authority/29UP,Tonbridge & Malling Borough Council,10/25/2023,0012008873/2,12008873, 14.50,BEHRENS Group,01909400,,Purchases,Information Technology,D27KD000040101,410032448
http://statistics.data.gov.uk/id/local-authority/29UP,Tonbridge & Malling Borough Council,10/25/2023,0012008873/3,12008873, 29.00,BEHRENS Group,01909400,,Purchases,Information Technology,D27KD000040101,410032448
http://statistics.data.gov.uk/id/local-authority/29UP,Tonbridge & Malling Borough Council,10/25/2023,0012008873/4,12008873, 37.50,BEHRENS Group,01909400,,Purchases,Information Technology,D27KD000040101,410032448
http://statistics.data.gov.uk/id/local-authority/29UP,Tonbridge & Malling Borough Council,10/25/2023,0012008873/5,12008873, 62.50,BEHRENS Group,01909400,,Purchases,Information Technology,D27KD000040101,410032448
http://statistics.data.gov.uk/id/local-authority/29UP,Tonbridge & Malling Borough Council,10/25/2023,0012008873/6,12008873, 7.95,BEHRENS Group,01909400,,Delivery Expenses,Information Technology,D27KD000044069,410032448
http://statistics.data.gov.uk/id/local-authority/29UP,Tonbridge & Malling Borough Council,10/25/2023,0012008874/1,12008874, 19.00,BEHRENS Group,01909400,,Purchases,Information Technology,D27KD000040101,410032448
http://statistics.data.gov.uk/id/local-authority/29UP,Tonbridge & Malling Borough Council,10/25/2023,0021038913/3,21038913, 1672.56,Technogym UK Ltd,00900000,,General,Angel Centre,B01AA000054012,
http://statistics.data.gov.uk/id/local-authority/29UP,Tonbridge & Malling Borough Council,10/25/2023,0021038914/1,21038914, 121.00,Fenland Leisure Products Ltd,01675100,,Maintenance of Play Equipment,Open Spaces & Amenity Areas,B22LE000020503,210057439
http://statistics.data.gov.uk/id/local-authority/29UP,Tonbridge & Malling Borough Council,10/25/2023,0021038915/1,21038915, 930.00,Garden Machinery Direct,01920500,275087242,Initial Furniture & Equipment,Capital Renewals Leisure,P05KGBC0309906,210057448
http://statistics.data.gov.uk/id/local-authority/29UP,Tonbridge & Malling Borough Council,10/25/2023,0021038916/1,21038916, 491.25,Castle Water,01696500,,Water Charges (Metered),Haysden Country Park,B22LC000024001,
http://statistics.data.gov.uk/id/local-authority/29UP,Tonbridge & Malling Borough Council,10/25/2023,0022028182/3,22028182, 3586.80,Ward Security LTD,01490000,,Dog Warden,Street Scene,H23SD000044100,
http://statistics.data.gov.uk/id/local-authority/29UP,Tonbridge & Malling Borough Council,10/25/2023,0022028183/1,22028183, 1425.00,Ricardo- AEA- Ltd,00445700,,Initial Furniture & Equipment,Air Quality Monitoring Station,P02EN000009906,220003382
http://statistics.data.gov.uk/id/local-authority/29UP,Tonbridge & Malling Borough Council,10/25/2023,0022028184/3,22028184, 14.51,Octopus Energy,01895300,,Electricity,Homelessness,C01AATNHS21002,
http://statistics.data.gov.uk/id/local-authority/29UP,Tonbridge & Malling Borough Council,10/25/2023,0022028185/1,22028185, 36.33,Ark Trading/Goldstar,01607200,113179830,Purchases,Street Scene,H23SD000040101,220003399
http://statistics.data.gov.uk/id/local-authority/29UP,Tonbridge & Malling Borough Council,10/25/2023,0022028185/2,22028185, 60.55,Ark Trading/Goldstar,01607200,113179830,Purchases,Street Scene,H23SD000040101,220003399
http://statistics.data.gov.uk/id/local-authority/29UP,Tonbridge & Malling Borough Council,10/25/2023,0022028185/3,22028185, 66.27,Ark Trading/Goldstar,01607200,113179830,Purchases,Street Scene,H23SD000040101,220003399
http://statistics.data.gov.uk/id/local-authority/29UP,Tonbridge & Malling Borough Council,10/25/2023,0022028185/4,22028185, 38.64,Ark Trading/Goldstar,01607200,113179830,Purchases,Street Scene,H23SD000040101,220003399
http://statistics.data.gov.uk/id/local-authority/29UP,Tonbridge & Malling Borough Council,10/25/2023,0022028185/5,22028185, 24.22,Ark Trading/Goldstar,01607200,113179830,Purchases,Street Scene,H23SD000040101,220003399
http://statistics.data.gov.uk/id/local-authority/29UP,Tonbridge & Malling Borough Council,10/25/2023,0022028185/6,22028185, 36.22,Ark Trading/Goldstar,01607200,113179830,Purchases,Street Scene,H23SD000040101,220003399
http://statistics.data.gov.uk/id/local-authority/29UP,Tonbridge & Malling Borough Council,10/25/2023,0022028185/7,22028185, 36.22,Ark Trading/Goldstar,01607200,113179830,Purchases,Street Scene,H23SD000040101,220003399
http://statistics.data.gov.uk/id/local-authority/29UP,Tonbridge & Malling Borough Council,10/25/2023,0022028185/8,22028185, 34.56,Ark Trading/Goldstar,01607200,113179830,Purchases,Street Scene,H23SD000040101,220003399
http://statistics.data.gov.uk/id/local-authority/29UP,Tonbridge & Malling Borough Council,10/25/2023,0022028185/9,22028185, 22.09,Ark Trading/Goldstar,01607200,113179830,Purchases,Street Scene,H23SD000040101,220003399
http://statistics.data.gov.uk/id/local-authority/29UP,Tonbridge & Malling Borough Council,10/25/2023,0022028186/3,22028186, 68.54,British Telecommunications Plc,00012800,,Purchases,Homelessness,C01AATNPR40101,
http://statistics.data.gov.uk/id/local-authority/29UP,Tonbridge & Malling Borough Council,10/25/2023,0022028187/3,22028187, 490.26,KCC - L.A.S.E.R Commercial Services ,00184300,,Air Quality Monitoring,Environmental Protection,H32SN000054016,
http://statistics.data.gov.uk/id/local-authority/29UP,Tonbridge & Malling Borough Council,10/25/2023,0022028188/1,22028188, 33806.00,Smart Property Professionals,01815100,,Temporary Accommodation,Homelessness,C01AA000044051,
http://statistics.data.gov.uk/id/local-authority/29UP,Tonbridge & Malling Borough Council,10/25/2023,0022028189/1,22028189, 81.61,Tunbridge Wells Borough Council,00844600,,Council Tax,Homelessness,C01AA000023002,
http://statistics.data.gov.uk/id/local-authority/29UP,Tonbridge & Malling Borough Council,10/25/2023,0022028190/3,22028190, 1124.77,KCC - L.A.S.E.R Commercial Services ,00184300,,Electricity,Public Conveniences,H22SCH00921002,
http://statistics.data.gov.uk/id/local-authority/29UP,Tonbridge & Malling Borough Council,10/25/2023,0022028191/3,22028191, 1963.00,On Site Wheelie Washers,01069700,,Other Expenses,Refuse Collection,H20SA000048010,
http://statistics.data.gov.uk/id/local-authority/29UP,Tonbridge & Malling Borough Council,10/25/2023,0022028192/3,22028192, 4125.00,On Site Wheelie Washers,01069700,,General Maintenance,Dry Recycling,H34SR000020301,
http://statistics.data.gov.uk/id/local-authority/29UP,Tonbridge & Malling Borough Council,10/25/2023,0031019780/1,31019780, 1449.50,DSSL Group Ltd,01839500,,CCTV Monitoring Station,Security Services Management,E09GA000051020,310043139
http://statistics.data.gov.uk/id/local-authority/29UP,Tonbridge & Malling Borough Council,10/25/2023,0031019781/1,31019781, 1550.00,DSSL Group Ltd,01839500,,CCTV Monitoring Station,Security Services Management,E09GA000051020,310043139
http://statistics.data.gov.uk/id/local-authority/29UP,Tonbridge & Malling Borough Council,10/25/2023,0031019782/3,31019782, 942.38,CDER Group,01773300,,Adjudication & Enforcement Ser,Parking Off-Street,E10HA000044230,
http://statistics.data.gov.uk/id/local-authority/29UP,Tonbridge & Malling Borough Council,10/25/2023,0032010514/3,32010514, 1727.60,The Oyster Partnership,01196400,,Temporary Staff,Planning Sals&Overheads,D01AJDJ0111300,
http://statistics.data.gov.uk/id/local-authority/29UP,Tonbridge & Malling Borough Council,10/25/2023,0032010515/3,32010515, 1669.50,The Oyster Partnership,01196400,,Temporary Staff,Planning Sals&Overheads,D01AJDJ0111300,
http://statistics.data.gov.uk/id/local-authority/29UP,Tonbridge & Malling Borough Council,10/25/2023,0032010517/3,32010517, 3876.00,Vivid Resourcing,01773700,,Temporary Staff,Planning Sals&Overheads,D01AJDJ0111300,
http://statistics.data.gov.uk/id/local-authority/29UP,Tonbridge & Malling Borough Council,10/25/2023,0032010518/3,32010518, 1863.00,Carrington West Limited,01844500,,Temporary Staff,Planning Sals&Overheads,D01AJDJ0111300,
http://statistics.data.gov.uk/id/local-authority/29UP,Tonbridge & Malling Borough Council,10/25/2023,0032010519/3,32010519, 1504.00,Carrington West Limited,01844500,,Temporary Staff,Planning Sals&Overheads,D01AJDJ0111300,
http://statistics.data.gov.uk/id/local-authority/29UP,Tonbridge & Malling Borough Council,10/25/2023,0032010520/1,32010520, 11868.16,Land Use Consulting Ltd,01838700,,Development of Local Plan,Development of Local Plan,A01AE000044023,320003561
http://statistics.data.gov.uk/id/local-authority/29UP,Tonbridge & Malling Borough Council,10/25/2023,0032010521/3,32010521, 1250.00,Tunbridge Wells Borough Council,00844600,,Conservation,Conservation,A01AG000056002,
http://statistics.data.gov.uk/id/local-authority/29UP,Tonbridge & Malling Borough Council,10/25/2023,0032010522/3,32010522, 1257.44,Tunbridge Wells Borough Council,00844600,,Conservation,Conservation,A01AG000056002,
http://statistics.data.gov.uk/id/local-authority/29UP,Tonbridge & Malling Borough Council,10/25/2023,0041035990/1,41035990, 8.98,KCS Education/CSG Global Education Ltd,01897200,408845925,Stationery,Finance Sals&Overheads,D01AF000043003,410032495
http://statistics.data.gov.uk/id/local-authority/29UP,Tonbridge & Malling Borough Council,10/25/2023,0041035990/2,41035990, 17.90,KCS Education/CSG Global Education Ltd,01897200,408845925,Stationery,Finance Sals&Overheads,D01AF000043003,410032495
http://statistics.data.gov.uk/id/local-authority/29UP,Tonbridge & Malling Borough Council,10/25/2023,0041035991/3,41035991, 2174.09,Rundle & Co Ltd,00087200,,Bailiffs Commission,Local Revenue & NNDR Collect,D41QA000044075,
http://statistics.data.gov.uk/id/local-authority/29UP,Tonbridge & Malling Borough Council,10/25/2023,0041035992/3,41035992, 1147.69,Morgan Hunt UK Ltd,01086900,,Temporary Staff,Finance Sals&Overheads,D01AFDF1111300,
http://statistics.data.gov.uk/id/local-authority/29UP,Tonbridge & Malling Borough Council,10/25/2023,0041036004/1,41036004, 385.00,Integra User Group Ltd,00533100,,Subscriptions,Finance Sals&Overheads,D01AFDF0247002,
http://statistics.data.gov.uk/id/local-authority/29UP,Tonbridge & Malling Borough Council,10/25/2023,0041036005/1,41036005, 128505.01,Upper Medway Internal Drainage Board,00109100,,Payments to Drainage Boards,Drainage Boards Levies,D44QT000024004,
http://statistics.data.gov.uk/id/local-authority/29UP,Tonbridge & Malling Borough Council,10/25/2023,0041036006/1,41036006, 113529.58,Lower Medway Internal Drainage Board,00059900,,Payments to Drainage Boards,Drainage Boards Levies,D44QT000024004,
http://statistics.data.gov.uk/id/local-authority/29UP,Tonbridge & Malling Borough Council,10/25/2023,0041036010/1,41036010, 15.00,BNP Paribas,01360500,,Bank Charges,Banking Arrangements,D43QK000044222,
http://statistics.data.gov.uk/id/local-authority/29UP,Tonbridge & Malling Borough Council,10/25/2023,0041036011/1,41036011, 68.00,National Westminster Bank Plc,00069400,,Bank Charges,Banking Arrangements,D43QK000044222,
http://statistics.data.gov.uk/id/local-authority/29UP,Tonbridge & Malling Borough Council,10/25/2023,0041036012/1,41036012, 5.30,WorldPay ,01568000,,Credit Card Commission,Banking Arrangements,D43QK000044082,
http://statistics.data.gov.uk/id/local-authority/29UP,Tonbridge & Malling Borough Council,10/25/2023,0041036013/1,41036013, 24.99,WorldPay ,01568000,,Credit Card Commission,Banking Arrangements,D43QK000044082,
http://statistics.data.gov.uk/id/local-authority/29UP,Tonbridge & Malling Borough Council,10/25/2023,0041036013/2,41036013, 43.92,WorldPay ,01568000,,Credit Card Commission,Banking Arrangements,D43QK000044082,
http://statistics.data.gov.uk/id/local-authority/29UP,Tonbridge & Malling Borough Council,10/25/2023,0051008856/3,51008856, 174.16,Gravesham Borough Council,01106000,204273500,Ext Fees/Prof & Tech,Training,D10DCDV0913561,
http://statistics.data.gov.uk/id/local-authority/29UP,Tonbridge & Malling Borough Council,10/25/2023,0051008857/1,51008857, 500.00,Association of Electoral Administrators,01652500,580583816,Ext Fees/Prof & Tech,Training,D10DCDC0413561,510010656
http://statistics.data.gov.uk/id/local-authority/29UP,Tonbridge & Malling Borough Council,10/25/2023,0051008858/1,51008858, 300.00,Irrv,00050300,,Ext Fees/Prof & Tech,Training,D10DCDF1113561,510010655
http://statistics.data.gov.uk/id/local-authority/29UP,Tonbridge & Malling Borough Council,10/25/2023,0051008860/3,51008860, 32.00,Maidstone & Tun Wells NHS Trust,00067100,,Occuptional Health Medicals,Health Care,D10DBDA0713311,
http://statistics.data.gov.uk/id/local-authority/29UP,Tonbridge & Malling Borough Council,10/25/2023,0051008860/4,51008860, 32.00,Maidstone & Tun Wells NHS Trust,00067100,,Occuptional Health Medicals,Health Care,D10DBDJ0113311,
http://statistics.data.gov.uk/id/local-authority/29UP,Tonbridge & Malling Borough Council,10/25/2023,0051008860/5,51008860, 102.00,Maidstone & Tun Wells NHS Trust,00067100,,Occuptional Health Medicals,Health Care,D10DBDN0113311,
http://statistics.data.gov.uk/id/local-authority/29UP,Tonbridge & Malling Borough Council,10/25/2023,0051008860/6,51008860, 70.00,Maidstone & Tun Wells NHS Trust,00067100,,Occuptional Health Medicals,Health Care,D10DBDV0713311,
http://statistics.data.gov.uk/id/local-authority/29UP,Tonbridge & Malling Borough Council,10/25/2023,0051008861/1,51008861, 148.00,Maidstone & Tun Wells NHS Trust,00067100,,Occuptional Health Medicals,Health Care,D10DBDJ0113311,
http://statistics.data.gov.uk/id/local-authority/29UP,Tonbridge & Malling Borough Council,10/26/2023,0041035930/1,41035930, 51.00,National Westminster Bank Plc,00894500,,Temporary Accommodation,Homelessness,C01AA000044051,
http://statistics.data.gov.uk/id/local-authority/29UP,Tonbridge & Malling Borough Council,10/26/2023,0041035930/10,41035930, 25.11,National Westminster Bank Plc,00894500,,Software Hire & Support,Information Technology,D27KD000044059,
http://statistics.data.gov.uk/id/local-authority/29UP,Tonbridge & Malling Borough Council,10/26/2023,0041035930/11,41035930, 43.27,National Westminster Bank Plc,00894500,,Software Hire & Support,Information Technology,D27KD000044059,
http://statistics.data.gov.uk/id/local-authority/29UP,Tonbridge & Malling Borough Council,10/26/2023,0041035930/12,41035930, 1592.00,National Westminster Bank Plc,00894500,,Software Hire & Support,Information Technology,D27KD000044059,
http://statistics.data.gov.uk/id/local-authority/29UP,Tonbridge & Malling Borough Council,10/26/2023,0041035930/13,41035930, 49.00,National Westminster Bank Plc,00894500,,Information & Publicity,Information & Publicity,D32MJ000044076,
http://statistics.data.gov.uk/id/local-authority/29UP,Tonbridge & Malling Borough Council,10/26/2023,0041035930/14,41035930, 102.92,National Westminster Bank Plc,00894500,,Sales,TIC Stock Account,K18AX000002002,
http://statistics.data.gov.uk/id/local-authority/29UP,Tonbridge & Malling Borough Council,10/26/2023,0041035930/15,41035930, 27.63,National Westminster Bank Plc,00894500,,Sales,TIC Stock Account,K18AX000002002,
http://statistics.data.gov.uk/id/local-authority/29UP,Tonbridge & Malling Borough Council,10/26/2023,0041035930/16,41035930, 54.51,National Westminster Bank Plc,00894500,,Sales,TIC Stock Account,K18AX000002002,
http://statistics.data.gov.uk/id/local-authority/29UP,Tonbridge & Malling Borough Council,10/26/2023,0041035930/17,41035930, 56.35,National Westminster Bank Plc,00894500,,Sales,TIC Stock Account,K18AX000002002,
http://statistics.data.gov.uk/id/local-authority/29UP,Tonbridge & Malling Borough Council,10/26/2023,0041035930/2,41035930, 226.00,National Westminster Bank Plc,00894500,,Legal Fees,Legal Sals&Overheads,D01ARDR0044002,
http://statistics.data.gov.uk/id/local-authority/29UP,Tonbridge & Malling Borough Council,10/26/2023,0041035930/3,41035930, 137.63,National Westminster Bank Plc,00894500,,Castle Catering Provisions,Ton Castle Council Chamber,D21FC000041015,
http://statistics.data.gov.uk/id/local-authority/29UP,Tonbridge & Malling Borough Council,10/26/2023,0041035930/4,41035930, 50.36,National Westminster Bank Plc,00894500,,Castle Catering Provisions,Ton Castle Council Chamber,D21FC000041015,
http://statistics.data.gov.uk/id/local-authority/29UP,Tonbridge & Malling Borough Council,10/26/2023,0041035930/5,41035930, 150.41,National Westminster Bank Plc,00894500,,Castle Catering Provisions,Ton Castle Council Chamber,D21FC000041015,
http://statistics.data.gov.uk/id/local-authority/29UP,Tonbridge & Malling Borough Council,10/26/2023,0041035930/6,41035930, 14.45,National Westminster Bank Plc,00894500,,Software Hire & Support,Information Technology,D27KD000044059,
http://statistics.data.gov.uk/id/local-authority/29UP,Tonbridge & Malling Borough Council,10/26/2023,0041035930/7,41035930, 1270.05,National Westminster Bank Plc,00894500,,Software Hire & Support,Information Technology,D27KD000044059,
http://statistics.data.gov.uk/id/local-authority/29UP,Tonbridge & Malling Borough Council,10/26/2023,0041035930/8,41035930, 30.90,National Westminster Bank Plc,00894500,,Software Hire & Support,Information Technology,D27KD000044059,
http://statistics.data.gov.uk/id/local-authority/29UP,Tonbridge & Malling Borough Council,10/26/2023,0041035930/9,41035930, 14.64,National Westminster Bank Plc,00894500,,Software Hire & Support,Information Technology,D27KD000044059,
http://statistics.data.gov.uk/id/local-authority/29UP,Tonbridge & Malling Borough Council,10/26/2023,0041036019/1,41036019, 15.00,BNP Paribas,01360500,,Bank Charges,Banking Arrangements,D43QK000044222,
http://statistics.data.gov.uk/id/local-authority/29UP,Tonbridge & Malling Borough Council,10/30/2023,0041036020/1,41036020, 15.00,BNP Paribas,01360500,,Bank Charges,Banking Arrangements,D43QK000044222,
http://statistics.data.gov.uk/id/local-authority/29UP,Tonbridge & Malling Borough Council,10/30/2023,0041036021/1,41036021, 20.03,WorldPay Ltd,01402000,991280207,Credit Card Commission,Banking Arrangements,D43QK000044082,
http://statistics.data.gov.uk/id/local-authority/29UP,Tonbridge & Malling Borough Council,10/31/2023,0041036029/1,41036029, 15.00,BNP Paribas,01360500,,Bank Charges,Banking Arrangements,D43QK000044222,
